Workbook

Sheet Totals
A1: Resources:
A2: Beginning Fund Balance/Net Working Capital | H2: =SUM('LB-20 General'!F9,'LB-20 Water'!F9,'LB-20 State Street'!F9,'LB-20 Library'!F9,'LB-20 State Rev'!F9,'LB-11 Capital Outlay'!F12,'LB-11 Water Loan'!F12,'LB-11 WSR'!F12,) -> $451,886.00
A3: Fees, Licenses, Permits, Fines, Assessments & Other Service Charges | H3: =SUM('LB-20 General'!F15,'LB-20 General'!F18,'LB-20 General'!F21,'LB-20 General'!F23,'LB-20 General'!F24,'LB-20 General'!F25,'LB-20 General'!F28,'LB-20 State Street'!F19) -> $32,200.00
A4: Federal, State and All Other Grants, Gifts, Allocations and Donations | H4: =SUM('LB-20 General'!F16,'LB-20 General'!F17,'LB-20 State Street'!F16,'LB-20 Library'!F18,'LB-20 Library'!F17,'LB-20 Library'!F19,'LB-20 State Rev'!F16,) -> $35,200.00
A5: Revenue from Bonds and Other Debt | H5: $0.00
A6: Interfund Transfers / Internal Service Reimbursements | H6: =SUM('LB-20 General'!F28,'LB-20 State Street'!F13,'LB-20 Library'!F23) -> $24,000.00
A7: All Other Resources Except Property Taxes | H7: =SUM('LB-20 General'!F12,'LB-20 General'!F19,'LB-20 General'!F20,'LB-20 Water'!F12,'LB-20 Water'!F15,'LB-20 Water'!F16,'LB-20 Water'!F17,'LB-20 Water'!F18,'LB-20 Water'!F19,'LB-20 Water'!F20,'LB-20 State Street'!F12,'LB-20 State Street'!F18,'LB-20 State Rev'!F12,'LB-11 Capital Outlay'!F15,'LB-11 Water Loan'!F15,'LB-11 Water Loan'!F15,'LB-11 WSR'!F15) -> $145,236.00 | I7: $139,276.00
A8: Property Taxes Estimated to be Received | H8: =SUM('LB-20 General'!F11,'LB-20 General'!F38,'LB-20 Library'!F15) -> $98,500.00
H9: =SUM(H2:H8) -> $787,022.00
A11: Total Budget: | H11: $781,542.00
A18: Expenses:
A19: Personell Services | D19: =SUM(' LB-30 Admin Req'!F16,'LB-30 Park Req'!F16,'LB-30 Water Req'!F16,'LB-30 Streets Req'!F16,'LB-30 Library Req'!F16) -> $164,450.00
A20: Materials & Services | D20: $217,126.00
A21: Capital Outlay | D21: =SUM(' LB-30 Admin Req'!F31,'LB-30 Park Req'!F24,'LB-30 Water Req'!F32,'LB-30 Streets Req'!F32,'LB-11 Capital Outlay'!F30,'LB-11 WSR'!F26) -> $312,793.00
A22: Debt Service | D22: =SUM('LB-30 Water Req'!F22) -> $22,500.00
A23: Interfund Transfers | D23: =SUM('LB-31 General D Req'!J21,' LB-30 Admin Req'!F33,) -> $17,000.00
A24: Contingencies | D24: =SUM('LB-31 General D Req'!J10,'LB-30 Water Req'!F38,'LB-30 Library Req'!F38,) -> $68,716.00
A25: Special Payments | D25: $0.00
A26: Reserved for future Expenditure | D26: =SUM('LB-11 Water Loan'!F40) -> $42,890.00
D27: =SUM(D19:D26) -> $845,475.00

Sheet Resolution 20-10
B1: RESOLUTION NO. 20-10
B3: RESOLUTION ADOPTING THE BUDGET
B5: BE IT RESOLVED that the City Council of City of Adams hereby adopts the budget for fiscal year 2020-2021
B6: in the amount of $781,542.00*
B7: This budget is now on file at Adams City Hall in Adams, Oregon.
B9: RESOLUTION MAKING APPROPRIATIONS
B11: BE IT RESOLVED that the amounts shown below are hereby appropriated for the fiscal year beginning
B12: July 1, 2020 for the following purposes:
C13: General Fund | G13: Capital Outlay
C14: Organizational Unit or Program: General Fund | G14: Org. Unit/Program: Public Works | I14: 192,813
C15: Adminstration | E15: 101,950 | G15: Special Payments……………… | I15: 0
C16: Parks | E16: 26,850 | G16: Transfers Out………… | I16: 0
G17: Debt Service……………………… | I17: 0
G18: Contingency…………..…… | I18: 0
E20: =SUM(E15:E19) -> $128,800
C21: Not Allocated to Organizational Unit or Program: | G21: Total……….... | I21: =SUM(I14:I18) -> $192,813
C22: Transfers Out………… | E22: 7,000
C23: Contingency…………..…… | E23: 30,181
C24: Total……….... | E24: =SUM(E20:E23) -> $165,981
C26: State Street Fund | G26: Water Fund
C27: Org. Unit/Program: State St. Fund | E27: 104,913 | G27: Org. Unit/Program: Public Works | I27: 105,650
C28: Special Payments……………… | G28: Debt Service ……………… | I28: 22,500
C29: Transfers Out………… | E29: 0 | G29: Transfers Out………… | I29: 7,000
C30: Contingency…………..…… | E30: 0 | G30: Contingency…………..…… | I30: 24,525
C31: Total……….... | E31: =SUM(E27:E30) -> $104,913 | G31: Total……….... | I31: =SUM(I27:I30) -> $159,675
C33: LibraryFund
C34: Org. Unit/Program: Library | E34: 56,950
C35: Special Payments……………… | E35: 0 | G35: Water Reserve Loan Fund
C36: Transfers Out………… | E36: 0 | G36: Org. Unit/Program: Public Works | I36: 42,890
C37: Contingency…………..…… | E37: 11,010 | G37: Debt Service……………… | I37: 0
C38: Total……….... | E38: =SUM(E34:E37) -> $67,960 | G38: Transfers Out………… | I38: 0
G39: Contingency…………..…… | I39: 0
G40: Total……….... | I40: =SUM(I36:I39) -> $42,890
C41: Water System Replacement Fund
C42: Org. Unit/Program: Utility System Improve | E42: 37,317
C43: Special Payments……………… | E43: 0
C44: Transfers Out………… | E44: 0 | G44: State Revenue Sharing
C45: Contingency…………..…… | E45: 0 | G45: Org. Unit/Program: State Revenue Sharing | I45: 9,993
C46: Total……….... | E46: =SUM(E42:E45) -> $37,317 | G46: Special Payments……………… | I46: 0
G47: Transfers Out………… | I47: 0
G48: Contingency…………..…… | I48: 0
G49: Total……….... | I49: =SUM(I45:I48) -> $9,993
H51: Total Unappropriated and Reserve Amounts, All Funds . . . .
H52: TOTAL ADOPTED BUDGET . . . . | I52: =SUM(E24+E31+E38+E46+I21+I31+I40+I49+I51) -> $781,542 | J52: *
H53: (*amounts with asterisks must match)
B57: RESOLUTION IMPOSING THE TAX
B59: BE IT RESOLVED that the following ad valorem property taxes are hereby imposed upon the assessed value
B60: of all taxable property within the district for tax year 2020- 2021:
B61: (1) In the amount of $ __________ OR at the rate of $ 4.1176 per $1000 of assessed value for permanent rate tax;
B65: RESOLUTION CATEGORIZING THE TAX
B67: BE IT RESOLVED that the taxes imposed are hereby categorized for purposes of Article XI section 11b as:
C69: Subject to the General Government Limitation
B71: Permanent Rate Tax..........$___________ OR $ 4.1176/$1,000
B78: The above resolution statements were approved and declared adopted on June 15, 2020.
C80: _______________________________
C81: Mayor
B83: X____________________________________________ | C83: _______________________________
C84: City Recorder
A86: 150-504-073-6 (Rev. 12-13)

Sheet LB-50
A1: Notice of Property Tax and Certification of Intent to Impose a Tax, Fee, Assessment or Charge on Property | O1: FORM LB-50
N2: 2020-2021
A3: To assessor of UMATILLA County
O5: Check here if this is
A6: . | B6: Be sure to read instructions in the Notice of Property Tax Levy Forms and Instruction booklet | O6: an amended form.
A8: The | B8: City of Adams | G8: has the responsibility and authority to place the following property tax, fee, charge or assessment
B9: District Name
A10: on the tax roll of | C10: Umatilla | H10: County. The property tax, fee, charge or assessment is categorized as stated by this form.
C11: County Name
A12: P. O. Box 20 | H12: Adams | K12: OR | M12: 97810 | O12: June 15, 2020
A13: Mailing Address of District | G13: City | K13: State | M13: ZIP code | O13: Date
A14: Donna Grimes | F14: Budget Officer | K14: 541-566-9380 | O14: cityofadams@wtechlink.us
A15: Contact Person | F15: Title | K15: Daytime Telephone | O15: Contact Person E-Mail
A16: CERTIFICATION - You must check one box if your district is subject to Local Budget Law.
B17: The tax rate or levy amounts certified in Part I are within the tax rate or levy amounts approved by the budget committee.
B18: The tax rate or levy amounts certified in Part I were changed by the governing body and republished as required in ORS 294.435.
A20: PART I: TOTAL PROPERTY TAX LEVY | L20: Subject to
L21: General Government Limits
L22: Rate -or- Dollar Amount
A23: 1. | B23: Rate/Amount levied (within permanent rate limit) . . . . . . . . . . . . . . . . . . . | K23: =A23 -> 1 | L23: 4.1176
A24: 2. | B24: Local option operating tax . . . . . . . . . . . . . . . . . . . . . . . . . . . . . . . . . . . . . . . . . . . . . . . . . . . . . . | K24: =A24 -> 2
A25: 3. | B25: Local option capital project tax . . . . . . . . . . . . . . . . . . . . . . . . . . . . . . . . . . . . . . | K25: =A25 -> 3 | O25: Excluded from Measure 5 Limits
A26: 4. | B26: Levy for pension and disability obligations . . . . . . . . . . . . . . . . . . . . . . . . . | K26: =A26 -> 4 | O26: Dollar Amount of Bond Levy
A27: 5a. | B27: Levy for bonded indebtedness from bonds approved by voters prior to October 6, 2001 . . . . . . . . . . . . | N27: =A27 -> 5a.
A28: 5b. | B28: Levy for bonded indebtedness from bonds approved by voters on or after October 6, 2001 . . . . . . . . . . . . . . . . . . . . . . . . . | N28: =A28 -> 5b.
A29: 5c. | B29: Total levy for bonded indebtedness not subject to Measure 5 or Measure 50 (total of 5a + 5b) . . . . . . . . . . . . . | N29: =A29 -> 5c. | O29: =SUM(O27:O28) -> 0
A31: PART II: RATE LIMIT CERTIFICATION
A32: 6. | B32: Permanent rate limit in dollars and cents per $1,000 . . . . . . . . . . . . . . . . . . . . . . . . . . . . . . . . . . . . . . . . . . . . . . . . . . . . | N32: =A32 -> 6 | O32: 4.1176
A33: 7. | B33: Election date when your new district received voter approval for your permanent rate limit . . . . . . . . . . . . . . . . . . . . . . . . . . . . . . . . . . . . . . . . . . . . . . . . | N33: =A33 -> 7
A34: 8. | B34: Estimated permanent rate limit for newly merged/consolidated district . . . . . . . . . .. . . . . . . . . . . . . . . . . . . . . . . . . . . | N34: =A34 -> 8
A37: PART III: SCHEDULE OF LOCAL OPTION TAXES - Enter all local option taxes on this schedule. If there are more than two taxes,
H38: attach a sheet showing the information for each.
A39: Purpose | H39: Date voters approved | K39: First year | M39: Final year | N39: Tax amount -or- rate
A40: (operating, capital project, or mixed) | H40: local option ballot measure | K40: levied | M40: to be levied | N40: authorized per year by voters
A44: Part IV. SPECIAL ASSESSMENTS, FEES AND CHARGES
B45: Description | H45: Subject to General Government Limitation | O45: Excluded from Measure 5 Limitation
A46: 1
A47: 2
A49: If fees, charges, or assessments will be imposed on specific property within your district, you must attach a complete listing of
A50: properties, by assessor’s account number, to which fees, charges, or assessments will be imposed. Show the fees, charges, or
A51: assessments uniformly imposed on the properties. If these amounts are not uniform, show the amount imposed on each property.
A52: The authority for putting these assessments on the roll is ORS __________________ (Must be completed if you have an entry in Part IV)
A54: 150-504-073-7 (Rev. 11-11) | D54: (see the back for worksheet for lines 5a, 5b, and 5c)
A55: File with your assessor no later than JULY 15, unless granted an extension in writing.

Sheet LB-1 Notice
A1: FORM LB-1 | B1: NOTICE OF BUDGET HEARING
A8: Contact: Donna Grimes | C8: Telephone: 541-566-9380 | D8: Email: cityofadams@wtechlink.us
A10: FINANCIAL SUMMARY - RESOURCES
A11: TOTAL OF ALL FUNDS | C11: Actual Amount | D11: Adopted Budget | E11: Approved Budget
C12: 2018-2019 | D12: This Year 2019-2020 | E12: Next Year 2020-21
A13: Beginning Fund Balance/Net Working Capital | C13: 337,632 | D13: 372,290 | E13: 451,886
A14: Fees, Licenses, Permits, Fines, Assessments & Other Service Charges | C14: 113,100 | D14: 113,100 | E14: 32,680
A15: Federal, State and All Other Grants, Gifts, Allocations and Donations | C15: 134,900 | D15: 144,000 | E15: 35,200
A16: Revenue from Bonds and Other Debt | C16: 0 | D16: 0 | E16: 0
A17: Interfund Transfers / Internal Service Reimbursements | C17: 41,000 | D17: 72,400 | E17: 24,000
A18: All Other Resources Except Property Taxes | C18: 2,257 | D18: 2,324 | E18: 139,276
A19: Property Taxes Estimated to be Received | C19: 66,800 | D19: 68,300 | E19: 98,500
A20: Total Resources | C20: =SUM(C13:C19) -> 695,689 | D20: =SUM(D13:D19) -> 772,414 | E20: =SUM(E13:E19) -> 781,542
A22: FINANCIAL SUMMARY - REQUIREMENTS BY OBJECT CLASSIFICATION
A23: Personnel Services | C23: 145,800 | D23: 152,350 | E23: 164,450
A24: Materials and Services | C24: 160,344 | D24: 167,230 | E24: 217,606
A25: Capital Outlay | C25: 316,250 | D25: 350,075 | E25: 248,380
A26: Debt Service | C26: 8,485 | D26: 3,440 | E26: 22,500
A27: Interfund Transfers | C27: 41,000 | D27: 72,400 | E27: 17,000
A28: Contingencies | C28: 23,810 | D28: 26,919 | E28: 68,716
A29: Special Payments | E29: 0
A30: Unappropriated Ending Balance and Reserved for Future Expenditure | C30: 0 | D30: 0 | E30: 42,890
A31: Total Requirements | C31: =SUM(C23:C30) -> 695,689 | D31: =SUM(D23:D30) -> 772,414 | E31: =SUM(E23:E30) -> 781,542
A33: FINANCIAL SUMMARY - REQUIREMENTS BY ORGANIZATIONAL UNIT OR PROGRAM *
A34: Name of Organizational Unit or Program
A35: FTE for that unit or program
A36: GENERAL-ADMINISTRATIVE | C36: 17,452 | D36: 33,200 | E36: 36,400
A37: FTE | C37: 1.00 | D37: 1.00 | E37: 0.75
A38: GENERAL-PARK | C38: 10,093 | D38: 15,600 | E38: 15,600
A39: FTE | C39: 0.25 | D39: 0.25 | E39: 0.25
A40: LIBRARY | C40: 24,961 | D40: 31,900 | E40: 40,800
A41: FTE | C41: 0.50 | D41: 0.50 | E41: 1.00
A42: WATER | C42: 41,793 | D42: 53,100 | E42: 53,100
A43: FTE | C43: 1.00 | D43: 1.00 | E43: 1.00
A44: GAS TAX-STREET | C44: 13,230 | D44: 18,550 | E44: 18,550
A45: FTE | C45: 0.25 | D45: 0.25 | E45: 0.25
A46: Total Requirements | C46: =C36+C38+C40+C42+C44 -> 107,529 | D46: 152,350 | E46: 164,450
A47: Total FTE | C47: 3.00 | D47: 3.00 | E47: 3.25
A49: STATEMENT OF CHANGES IN ACTIVITIES and SOURCES OF FINANCING *
A50: The City will be increasing the Librarians hours from 25 to 30 per week making the position eligible for health benefits. The library will be open more hours and the Librarian will serve as a grant writer for the City. The Wildhorse Creek Stabilization Project will conclude this year helping to protect our park structures.
A56: PROPERTY TAX LEVIES
C57: Rate or Amount Imposed | D57: Rate or Amount Imposed | E57: Rate or Amount Approved
A58: Permanent Rate Levy (rate limit 4.1176 per $1,000) | C58: 4.1176 | D58: 4.1176 | E58: 4.1176
A59: Local Option Levy
A60: Levy For General Obligation Bonds
A62: STATEMENT OF INDEBTEDNESS
A63: LONG TERM DEBT | B63: Estimated Debt Outstanding | D63: Estimated Debt Authorized, But
B64: on July 1. | D64: Not Incurred on July 1
A65: General Obligation Bonds
A66: Other Bonds
A67: Other Borrowings | B67: $277,601 | D67: $0
A68: Total | B68: $277,601 | D68: $0
A69: * If more space is needed to complete any section of this form, insert lines (rows) on this sheet or add sheets. You may delete unused lines.

Sheet LB-20 General
B1: FORM | E1: RESOURCES
B2: LB-20 | E2: GENERAL FUND | F2: CITY OF ADAMS
E3: (Fund) | F3: (Name of Municipal Corporation)
B4: Historical Data | E4: RESOURCE DESCRIPTION | F4: Budget for Next Year 2020-2021
B5: Actual | D5: Adopted Budget | F5: Proposed By Budget Officer | G5: Approved By Budget Committee | H5: Adopted By Governing Body
B6: Second Preceding | C6: First Preceding | D6: This Year
B7: Year '17-'18 | C7: Year '18-'19 | D7: 19-'20
A9: 1 | B9: 62000 | C9: 68293 | D9: 108269 | E9: 1. Available cash on hand* (cash basis) or | F9: =123131-58400 -> 64731 | G9: 64731 | H9: 64731 | I9: 1
A10: 2 | E10: 2. Net working capital (accrual basis) | I10: 2
A11: 3 | B11: 800 | C11: 800 | D11: 800 | E11: 3. Previously levied taxes estimated to be received | F11: 1000 | G11: 1000 | H11: 1000 | I11: 3
A12: 4 | B12: 50 | C12: 43 | D12: 100 | E12: 4. Interest | F12: 1500 | G12: 1500 | H12: 1500 | I12: 4
A13: 5 | E13: 5. Transferred IN, from other funds | I13: 5
A14: 6 | E14: 6. OTHER RESOURCES | I14: 6
A15: 7 | B15: 10750 | C15: 10786 | D15: 12000 | E15: 7. P. P. & L. FRANCHISE | F15: 12000 | G15: 12000 | H15: 12000 | I15: 7
A16: 8 | B16: 5564 | C16: 5931 | D16: 5700 | E16: 8. OLCC | F16: 5700 | G16: 5700 | H16: 5700 | I16: 8
A17: 9 | B17: 600 | C17: 390 | D17: 600 | E17: 9. CIGARETTE TAX | F17: 400 | G17: 400 | H17: 400 | I17: 9
A18: 10 | B18: 600 | C18: 538 | D18: 600 | E18: 10. GARBAGE FRANCHISE | F18: 600 | G18: 600 | H18: 600 | I18: 10
A19: 11 | B19: 1000 | C19: 750 | D19: 1000 | E19: 11. PLANNING PERMITS | F19: 500 | G19: 500 | H19: 500 | I19: 11
A20: 12 | B20: 750 | C20: 0 | D20: 750 | E20: 12. MISCELLANEOUS | F20: 750 | G20: 750 | H20: 750 | I20: 12
A21: 13 | B21: 1000 | C21: 758 | D21: 1000 | E21: 13. QWEST | F21: 800 | G21: 800 | H21: 800 | I21: 13
A22: 14 | B22: 1000 | C22: 0 | D22: 1000 | E22: 14. GRANTS | F22: 1000 | G22: 1000 | H22: 1000 | I22: 14
A23: 15 | B23: 500 | C23: 320 | D23: 600 | E23: 15. LICENSES & FEES | F23: 500 | G23: 500 | H23: 500 | I23: 15
A24: 16 | E24: 16 EASTERN OREGON TELECOM FRANCHISE | F24: 1000 | G24: 1000 | H24: 1000 | I24: 16
A25: 17 | E25: 17. WTECHLINK FRANCHISE | F25: 1000 | G25: 1000 | H25: 1000 | I25: 17
A26: 18 | E26: 18 | I26: 18
A27: 19 | E27: 19 | I27: 19
A28: 20 | B28: 7000 | C28: 7000 | D28: 7000 | E28: 20 WATER UTILITY EASEMENT FEES | F28: 7000 | G28: 7000 | H28: 7000 | I28: 20
A29: 21 | D29: 3439 | E29: 21 DEBT SERVICE LOAN REPAYMENT | F29: 0 | G29: 0 | H29: 0 | I29: 21
A30: 22 | E30: 22 | I30: 22
A31: 23 | E31: 23 | I31: 23
A32: 24 | E32: 24 | I32: 24
A33: 25 | E33: 25 | I33: 25
A34: 26 | E34: 26 | I34: 26
A35: 27 | E35: 27 | I35: 27
A36: 28 | E36: 28 | I36: 28
A37: 29 | B37: =SUM(B9:B36) -> 91614 | C37: =SUM(C9:C36) -> 95609 | D37: =SUM(D9:D29) -> 142858 | E37: 29. Total resources, except taxes to be levied | F37: =SUM(F9:F33) -> 98481 | G37: 98481 | H37: 98481 | I37: 29
A38: 30 | D38: 67500 | E38: 30. Taxes estimated to be received | F38: 67500 | G38: 67500 | H38: 67500 | I38: 30
A39: 31 | B39: 62235 | C39: 69329 | E39: 31. Taxes collected in year levied | I39: 31
A40: 32 | B40: =B37+B39 -> 153849 | C40: =C37+C39 -> 164938 | D40: 206919 | E40: 32. TOTAL RESOURCES | F40: =F37+F38 -> 165981 | G40: =G37+G38 -> 165981 | H40: =H37+H38 -> 165981 | I40: 32
E41: *Includes ending balance from prior year | F41: =IF(NOT(F40='LB-31 General D Req'!J41),"RESOURCES <> REQUIREMENTS", "") -> 

Sheet LB-31 General D Req
E1: DETAILED REQUIREMENTS
B2: FORM
B3: LB-31 | E3: CITY OF ADAMS-GENERAL FUND
E4: (Name of Organizational Unit - Fund)
B5: Historical Data | E5: REQUIREMENTS DESCRIPTION | H5: Number of Employ-ees | I5: Range* | J5: Budget for Next Year 2019-2020
B6: Actual | D6: Adopted Budget
B7: Second Preceding | C7: First Preceding | D7: This Year | J7: Proposed by | K7: Approved by | L7: Adopted by
B8: Year '17-'18 | C8: Year '18-'19 | D8: 19-'20 | J8: Budget Officer | K8: Budget Committee | L8: Governing Body
A9: 1 | E9: 1 | M9: 1
A10: 2 | B10: 25850 | C10: 23810 | D10: 26919 | E10: 2 OPERATING CONTINGENCY | J10: =88581-58400 -> 30181 | K10: 30181 | L10: 30181 | M10: 2
A11: 3 | E11: 3 | M11: 3
A12: 4 | B12: 8810 | C12: 43301 | D12: 87750 | E12: 4 TOTAL ADMINISTRATIVE | J12: 101950 | K12: 101950 | L12: 101950 | M12: 4
A13: 5 | E13: 5 | M13: 5
A14: 6 | B14: 26300 | C14: 26300 | D14: 26850 | E14: 6 TOTAL PARK | J14: 26850 | K14: 26850 | L14: 26850 | M14: 6
A15: 7 | E15: 7 | M15: 7
A16: 8 | E16: 8 | M16: 8
A17: 9 | B17: 10000 | C17: 20000 | D17: 58400 | E17: 9 TRANSFER TO CAPITAL OUTLAY FUND | J17: 0 | K17: 0 | L17: 0 | M17: 9
A18: 10 | E18: 10 | M18: 10
A19: 11 | B19: 0 | C19: 0 | D19: 0 | E19: 11 TRANSFER TO DEBT SERVICE FUND | J19: 0 | K19: 0 | L19: 0 | M19: 11
A20: 12 | E20: 12 | M20: 12
A21: 13 | B21: 7000 | C21: 7000 | D21: 7000 | E21: 13 TRANSFER TO GAS TAX FUND | J21: 7000 | K21: 7000 | L21: 7000 | M21: 13
A22: 14 | E22: 14 | M22: 14
A23: 15 | E23: 15 | M23: 15
A24: 16 | E24: 16 | M24: 16
A25: 17 | E25: 17 | M25: 17
A26: 18 | E26: 18 | M26: 18
A27: 19 | E27: 19 | M27: 19
A28: 20 | E28: 20 | M28: 20
A29: 21 | E29: 21 | M29: 21
A30: 22 | E30: 22 | M30: 22
A31: 23 | E31: 23 | M31: 23
A32: 24 | E32: 24 | M32: 24
A33: 25 | E33: 25 | M33: 25
A34: 26 | E34: 26 | M34: 26
A35: 27 | E35: 27 | M35: 27
A36: 28 | E36: 28 | M36: 28
A37: 29 | E37: 29 | M37: 29
A38: 30 | E38: 30 | M38: 30
A39: 31 | B39: 60691 | C39: 91827 | E39: 31 Ending balance (prior years) | M39: 31
A40: 32 | D40: 0 | E40: 32 UNAPPROPRIATED ENDING FUND BALANCE | M40: 32
A41: 33 | B41: =SUM(B9:B40) -> 138651 | C41: =SUM(C9:C40) -> 212238 | D41: =SUM(D9:D40) -> 206919 | E41: 33 TOTAL REQUIREMENTS | J41: =SUM(J9:J40) -> 165981 | K41: =SUM(K9:K40) -> 165981 | L41: =SUM(L9:L40) -> 165981 | M41: 33
B42: 150-504-031 (Rev 12/09) | J42: =IF(NOT(J41='LB-20 General'!F40),"RESOURCES <> REQUIREMENTS", "") -> 

Sheet LB-30 Admin Req
D1: REQUIREMENTS SUMMARY
B2: FORM | D2: BY FUND, ORGANIZATIONAL UNIT OR PROGRAM
B3: LB-30 | D3: CITY OF ADAMS-ADMINISTRATIVE-GENERAL FUND
D4: (name of organizational unit - fund)
B5: Historical Data | E5: REQUIREMENTS DESCRIPTION | F5: Budget For Next Year 2020-2021
B6: Actual | D6: Adopted Budget
B7: Second Preceding | C7: First Preceding | D7: This Year | F7: Proprosed By | G7: Approved By | H7: Adopted By
B8: Year '17-'18 | C8: Year '18-'19 | D8: 19-20 | F8: Budget Officer | G8: Budget Committee | H8: Governing Body
E9: PERSONAL SERVICES
A10: 1 | B10: 17000 | C10: 12157 | D10: 18000 | E10: 1 RECORDER/ASSISTANT | F10: ='LB-31 Admin Fund Req'!J9 -> 18000 | G10: 18000 | H10: 18000 | I10: 1
A11: 2 | B11: 7500 | C11: 2386 | D11: 7500 | E11: 2 SUMMER TEMPORARY HELP | F11: ='LB-31 Admin Fund Req'!J10 -> 7500 | G11: 7500 | H11: 7500 | I11: 2
A12: 3 | B12: 2450 | C12: 2065 | D12: 2500 | E12: 3 PAYROLL TAXES | F12: ='LB-31 Admin Fund Req'!J11 -> 2500 | G12: 2500 | H12: 2500 | I12: 3
A13: 4 | B13: 5400 | C13: 1784 | D13: 5200 | E13: 4 BENEFITS | F13: ='LB-31 Admin Fund Req'!J12 -> 8400 | G13: 8400 | H13: 8400 | I13: 4
A14: 5 | E14: 5 | I14: 5
A15: 6 | E15: 6 | I15: 6
A16: 7 | B16: =SUM(B10:B15) -> 32350 | C16: =SUM(C10:C15) -> 18392 | D16: =SUM(D10:D15) -> 33200 | E16: 7 TOTAL PERSONAL SERVICES | F16: =SUM(F10:F15) -> 36400 | G16: =SUM(G10:G15) -> 36400 | H16: =SUM(H10:H15) -> 36400 | I16: 7
E17: MATERIALS AND SERVICES
A18: 8 | E18: 8 | I18: 8
A19: 9 | B19: 7500 | C19: 7500 | D19: 7500 | E19: 9 MATERIALS & SUPPLIES | F19: =SUM('LB-31 Admin Fund Req'!J14:J16) -> 7500 | G19: 7500 | H19: 7500 | I19: 9
A20: 10 | E20: 10 | I20: 10
A21: 11 | B21: 35250 | C21: 35250 | D21: 40050 | E21: 11 CONTRACTUAL SERVICES | F21: 41050 | G21: 41050 | H21: 41050 | I21: 11
A22: 12 | E22: 12 | I22: 12
A23: 13 | E23: 13 | I23: 13
A24: 14 | B24: =SUM(B18:B23) -> 42750 | C24: 25569 | D24: =SUM(D18:D23) -> 47550 | E24: 14 TOTAL MATERIALS AND SERVICES | F24: =SUM(F18:F23) -> 48550 | G24: =SUM(G18:G23) -> 48550 | H24: =SUM(H18:H23) -> 48550 | I24: 14
E25: CAPITAL OUTLAY
A26: 15 | B26: 5000 | C26: 0 | D26: 5000 | E26: 15 CITY HALL IMPROVEMENTS | F26: ='LB-31 Admin Fund Req'!J35 -> 5000 | G26: 5000 | H26: 5000 | I26: 15
A27: 16 | B27: 1000 | C27: 0 | D27: 2000 | E27: 16 NEW OFFICE EQUIPMENT | F27: ='LB-31 Admin Fund Req'!J36 -> 2000 | G27: 2000 | H27: 2000 | I27: 16
A28: 17 | E28: 17 | I28: 17
A29: 18 | E29: 18 | I29: 18
A30: 19 | E30: 19 | I30: 19
A31: 20 | B31: =SUM(B26:B30) -> 6000 | C31: =SUM(C26:C30) -> 0 | D31: =SUM(D26:D30) -> 7000 | E31: 20 TOTAL CAPITAL OUTLAY | F31: =SUM(F26:F30) -> 7000 | G31: =SUM(G26:G30) -> 7000 | H31: =SUM(H26:H30) -> 7000 | I31: 20
E32: TRANSFERRED TO OTHER FUNDS
A33: 21 | B33: 7000 | C33: 7000 | D33: 0 | E33: 21 TRANSFER TO LIBRARY FUND | F33: ='LB-31 Admin Fund Req'!J38 -> 10000 | G33: 10000 | H33: 10000 | I33: 21
A34: 22 | E34: 22 TRANSFER TO CITY EQUIPMENT FUND | F34: ='LB-31 Admin Fund Req'!J39 -> 0 | G34: 0 | H34: 0 | I34: 22
A35: 23 | E35: 23 TRANSFER TO PARK RECREATIONAL | F35: ='LB-31 Admin Fund Req'!J37 -> 0 | G35: 0 | H35: 0 | I35: 23
A36: 24 | E36: 24 TRANSFER TO CAPITAL OUTLAY FUND | F36: ='LB-31 Admin Fund Req'!J40 -> 0 | G36: 0 | H36: 0 | I36: 24
A37: 25 | B37: =SUM(B33:B36) -> 7000 | C37: =SUM(C33:C36) -> 7000 | D37: 0 | E37: 25 TOTAL TRANSFERS | F37: 10000 | G37: =SUM(G33:G36) -> 10000 | H37: =SUM(H33:H36) -> 10000 | I37: 25
A38: 26 | E38: 26 OPERATING CONTINGENCY | I38: 26
A39: 27 | E39: 27 Ending balance (prior years) | I39: 27
A40: 28 | E40: 28 UNAPPROPRIATED ENDING FUND BALANCE | F40: 0 | I40: 28
A41: 29 | B41: 88100 | C41: 88100 | D41: 87750 | E41: 29 TOTAL REQUIREMENTS | F41: =+F16+F24+F31+F37+F38+F39+F40 -> 101950 | G41: =+G16+G24+G31+G37+G38+G39+G40 -> 101950 | H41: =+H16+H24+H31+H37+H38+H39+H40 -> 101950 | I41: 29
B42: 150-504-030 (Rev 12/09)

Sheet LB-31 Admin Fund Req
E1: DETAILED REQUIREMENTS
B2: FORM
B3: LB-31 | E3: CITY OF ADAMS-ADMIN-GENERAL FUND
E4: (Name of Organizational Unit - Fund)
B5: Historical Data | E5: REQUIREMENTS DESCRIPTION | H5: Number of Employ-ees | I5: Range* | J5: Budget for Next Year 2020-2021
B6: Actual | D6: Adopted Budget
B7: Second Preceding | C7: First Preceding | D7: This Year | J7: Proposed by | K7: Approved by | L7: Adopted by
B8: Year '17-'18 | C8: Year '18-'19 | D8: 19-'20 | J8: Budget Officer | K8: Budget Committee | L8: Governing Body
A9: 1 | B9: 17000 | C9: 12157 | D9: 18000 | E9: 1 RECORDER/ASSISTANT | H9: 0.5 | J9: 18000 | K9: 18000 | L9: 18000 | M9: 1
A10: 2 | B10: 7500 | C10: 2387 | D10: 7500 | E10: 2 TEMPORARY SUMMER HELP | H10: 0.25 | J10: 7500 | K10: 7500 | L10: 7500 | M10: 2
A11: 3 | B11: 2450 | C11: 2065 | D11: 2500 | E11: 3 PAYROLL TAXES | J11: 2500 | K11: 2500 | L11: 2500 | M11: 3
A12: 4 | B12: 5400 | C12: 1785 | D12: 5200 | E12: 4 BENEFITS | J12: 8400 | K12: 8400 | L12: 8400 | M12: 4
A13: 5 | E13: 5 | M13: 5
A14: 6 | B14: 2000 | C14: 444 | D14: 2000 | E14: 6 CITY HALL MAINTENANCE | J14: 2000 | K14: 2000 | L14: 2000 | M14: 6
A15: 7 | B15: 500 | C15: 500 | D15: 500 | E15: 7 MISCELLANEOUS | J15: 500 | K15: 500 | L15: 500 | M15: 7
A16: 8 | B16: 5000 | C16: 5009 | D16: 5000 | E16: 8 OFFICE EXPENDITURES | J16: 5000 | K16: 5000 | L16: 5000 | M16: 8
E17: 9
A18: 10 | B18: 2500 | C18: 2200 | D18: 2800 | E18: 10 COMMUNICATIONS | J18: 2800 | K18: 2800 | L18: 2800 | M18: 10
A19: 11 | B19: 350 | C19: 310 | D19: 400 | E19: 11 LEAGUE OF OREGON CITIES | J19: 400 | K19: 400 | L19: 400 | M19: 11
A20: 12 | B20: 1200 | C20: 1379 | D20: 1300 | E20: 12 PUBLISHING | J20: 1300 | K20: 1300 | L20: 1300 | M20: 12
A21: 13 | B21: 2500 | C21: 90 | D21: 2500 | E21: 13 LAWYER'S FEE/COURT | J21: 2500 | K21: 2500 | L21: 2500 | M21: 13
A22: 14 | B22: 2500 | C22: 2105 | D22: 2800 | E22: 14 P.P. & L. (ELECTRICITY) | J22: 2800 | K22: 2800 | L22: 2800 | M22: 14
A23: 15 | B23: 3500 | C23: 1860 | D23: 4000 | E23: 15 INSURANCE | J23: 4000 | K23: 4000 | L23: 4000 | M23: 15
A24: 16 | B24: 9000 | C24: 8950 | D24: 9500 | E24: 16 AUDIT & FILING FEE | J24: 9500 | K24: 9500 | L24: 9500 | M24: 16
A25: 17 | B25: 250 | C25: 208 | D25: 250 | E25: 17 POST OFFICE BOX RENT | J25: 250 | K25: 250 | L25: 250 | M25: 17
A26: 18 | B26: 100 | C26: 45 | D26: 100 | E26: 18 SAFE DEPOSIT BOX RENT | J26: 100 | K26: 100 | L26: 100 | M26: 18
A27: 19 | B27: 1000 | C27: 1115 | D27: 1000 | E27: 19 MISCELLANEOUS PLANNING | J27: 1000 | K27: 1000 | L27: 1000 | M27: 19
A28: 20 | B28: 850 | C28: 796 | D28: 900 | E28: 20 EMPLOYEE TRAVEL | J28: 900 | K28: 900 | L28: 900 | M28: 20
A29: 22 | B29: 500 | C29: 665 | D29: 1000 | E29: 21 EMPLOYEE TRAINING | J29: 1000 | K29: 1000 | L29: 1000 | M29: 22
A30: 23 | B30: 1000 | C30: 0 | D30: 1500 | E30: 22 SAFETY, HEALTH, WELLNESS | J30: 1500 | K30: 1500 | L30: 1500 | M30: 23
A31: 24 | B31: 10000 | C31: 682 | D31: 10000 | E31: 23 CODE ENFORCEMENT | J31: 10000 | K31: 10000 | L31: 10000 | M31: 24
A32: 25 | D32: 2000 | E32: 24 COMMUNITY OUTREACH | J32: 2000 | K32: 2000 | L32: 2000 | M32: 25
A33: 26 | E33: 25 EASTERN OREGON TELECOM | J33: 1000 | K33: 1000 | L33: 1000 | M33: 26
E34: 26
A35: 27 | B35: 5000 | C35: 0 | D35: 5000 | E35: 27 CITY HALL IMPROVEMENTS | J35: 5000 | K35: 5000 | L35: 5000 | M35: 27
A36: 28 | B36: 1000 | C36: 0 | D36: 2000 | E36: 28 NEW OFFICE EQUIPMENT | J36: 2000 | K36: 2000 | L36: 2000 | M36: 28
A37: 29 | E37: 29 TRANSFER TO PARK RECREATIONAL CAPITAL FUND | M37: 29
A38: 30 | B38: 7000 | C38: 7000 | D38: 0 | E38: 30 TRANSFER TO LIBRARY FUND | J38: 10000 | K38: 10000 | L38: 10000 | M38: 30
A39: 31 | E39: 31 TRANSFER TO CITY EQUIPMENT FUND | M39: 31
A40: 32 | E40: 32 TRANSFER TO CAPITAL OUTLAY FUND | M40: 32
A41: 33 | E41: 33 Ending balance (prior years) | M41: 33
A42: 34 | E42: 34 UNAPPROPRIATED ENDING FUND BALANCE | J42: 0 | K42: 0 | L42: 0 | M42: 34
A43: 35 | B43: =SUM(B9:B41) -> 88100 | C43: =SUM(C9:C41) -> 51752 | D43: =SUM(D9:D41) -> 87750 | E43: 35 TOTAL REQUIREMENTS | J43: =SUM(J9:J42) -> 101950 | K43: =SUM(K9:K42) -> 101950 | L43: =SUM(L9:L42) -> 101950 | M43: 35
B44: 150-504-031 (Rev 12/09)

Sheet LB-30 Park Req
D1: REQUIREMENTS SUMMARY
B2: FORM | D2: BY FUND, ORGANIZATIONAL UNIT OR PROGRAM
B3: LB-30 | D3: CITY OF ADAMS-PARK-GENERAL FUND
D4: (name of organizational unit - fund)
B5: Historical Data | E5: REQUIREMENTS DESCRIPTION | F5: Budget For Next Year 2020-2021
B6: Actual | D6: Adopted Budget
B7: Second Preceding | C7: First Preceding | D7: This Year | F7: Proprosed By | G7: Approved By | H7: Adopted By
B8: Year '17-'18 | C8: Year '18-'19 | D8: ;19-'20 | F8: Budget Officer | G8: Budget Committee | H8: Governing Body
E9: PERSONAL SERVICES
A10: 1 | B10: 12000 | C10: 8013 | D10: 12000 | E10: 1 PARK ATTENDANT | F10: ='LB-31 Park D Req'!J9 -> 12000 | G10: 12000 | H10: 12000 | I10: 1
A11: 2 | B11: 1200 | C11: 694 | D11: 1200 | E11: 2 PAYROLL TAXES | F11: ='LB-31 Park D Req'!J10 -> 1200 | G11: 1200 | H11: 1200 | I11: 2
A12: 3 | B12: 2100 | C12: 1386 | D12: 2400 | E12: 3 BENEFITS | F12: ='LB-31 Park D Req'!J11 -> 2400 | G12: 2400 | H12: 2400 | I12: 3
A13: 4 | E13: 4 | I13: 4
A14: 5 | E14: 5 | I14: 5
A15: 6 | E15: 6 | I15: 6
A16: 7 | B16: =SUM(B10:B15) -> 15300 | C16: =SUM(C10:C15) -> 10093 | D16: =SUM(D10:D15) -> 15600 | E16: 7 TOTAL PERSONAL SERVICES | F16: =SUM(F10:F15) -> 15600 | G16: =SUM(G10:G15) -> 15600 | H16: =SUM(H10:H15) -> 15600 | I16: 7
E17: MATERIALS AND SERVICES
A18: 8 | E18: 8 | I18: 8
A19: 9 | B19: 3750 | C19: 3750 | D19: 3750 | E19: 9 MATERIALS & SUPPLIES | F19: =SUM('LB-31 Park D Req'!J13:J15) -> 3750 | G19: 3750 | H19: 3750 | I19: 9
A20: 10 | E20: 10 | I20: 10
A21: 11 | B21: 4250 | C21: 4250 | D21: 4500 | E21: 11 CONTRACTUAL SERVICES | F21: =SUM('LB-31 Park D Req'!J17+'LB-31 Park D Req'!J19) -> 4500 | G21: 4500 | H21: 4500 | I21: 11
A22: 12 | E22: 12 | I22: 12
A23: 13 | B23: 3000 | C23: 3000 | D23: 3000 | E23: 13 PARK EQUIPMENT | F23: 3000 | G23: 3000 | H23: 3000 | I23: 13
A24: 14 | B24: =SUM(B18:B23) -> 11000 | C24: =SUM(C18:C23) -> 11000 | D24: =SUM(D18:D23) -> 11250 | E24: 14 TOTAL MATERIALS AND SERVICES | F24: =SUM(F18:F23) -> 11250 | G24: =SUM(G18:G23) -> 11250 | H24: =SUM(H18:H23) -> 11250 | I24: 14
E25: CAPITAL OUTLAY
A26: 15 | E26: 15 | I26: 15
A27: 16 | B27: 0 | C27: 0 | D27: 0 | E27: 16 PARK IMPROVEMENT | F27: ='LB-31 Park D Req'!J25 -> 0 | G27: 0 | H27: 0 | I27: 16
A28: 17 | E28: 17 | I28: 17
A29: 18 | E29: 18 | I29: 18
A30: 19 | E30: 19 | I30: 19
A31: 20 | E31: 20 | I31: 20
A32: 21 | B32: =SUM(B26:B31) -> 0 | C32: =SUM(C26:C31) -> 0 | D32: =SUM(D26:D31) -> 0 | E32: 21 TOTAL CAPITAL OUTLAY | F32: =SUM(F26:F31) -> 0 | G32: =SUM(G26:G31) -> 0 | H32: =SUM(H26:H31) -> 0 | I32: 21
E33: TRANSFERRED TO OTHER FUNDS
A34: 22 | E34: 22 | I34: 22
A35: 23 | E35: 23 CAPITAL OUTLAY FUND | I35: 23
A36: 24 | E36: 24 | I36: 24
A37: 25 | B37: =SUM(B34:B36) -> 0 | C37: =SUM(C34:C36) -> 0 | D37: =SUM(D34:D36) -> 0 | E37: 25 TOTAL TRANSFERS | F37: =SUM(F34:F36) -> 0 | G37: =SUM(G34:G36) -> 0 | H37: =SUM(H34:H36) -> 0 | I37: 25
E38: 26 OPERATING CONTINGENCY
A39: 26 | E39: 27 Ending balance (prior years) | I39: 26
A40: 27 | E40: 28 UNAPPROPRIATED ENDING FUND BALANCE | I40: 27
A41: 28 | B41: =+B16+B24+B32+B37+B39 -> 26300 | C41: =+C16+C24+C32+C37+C39+C40 -> 21093 | D41: =+D16+D24+D32+D37+D38+D39+D40 -> 26850 | E41: 29 TOTAL REQUIREMENTS | F41: =+F16+F24+F32+F37+F38+F39+F40 -> 26850 | G41: =+G16+G24+G32+G37+G38+G39+G40 -> 26850 | H41: =+H16+H24+H32+H37+H38+H39+H40 -> 26850 | I41: 28
B42: 150-504-030 (Rev 12/09)

Sheet LB-31 Park D Req
E1: DETAILED REQUIREMENTS
B2: FORM
B3: LB-31 | E3: CITY OF ADAMS-PARK-GENERAL FUND
E4: (Name of Organizational Unit - Fund)
B5: Historical Data | E5: REQUIREMENTS DESCRIPTION | H5: Number of Employ-ees | I5: Range* | J5: Budget for Next Year 2020-2021
B6: Actual | D6: Adopted Budget
B7: Second Preceding | C7: First Preceding | D7: This Year | J7: Proposed by | K7: Approved by | L7: Adopted by
B8: Year '17-'18 | C8: Year '18-'19 | D8: 19-'20 | J8: Budget Officer | K8: Budget Committee | L8: Governing Body
A9: 1 | B9: 12000 | C9: 8013 | D9: 12000 | E9: 1 PARK ATTENDANT | H9: 0.25 | J9: 12000 | K9: 12000 | L9: 12000 | M9: 1
A10: 2 | B10: 1200 | C10: 694 | D10: 1200 | E10: 2 PAYROLL TAXES | J10: 1200 | K10: 1200 | L10: 1200 | M10: 2
A11: 3 | B11: 2100 | C11: 1386 | D11: 2400 | E11: 3 BENEFITS | J11: 2400 | K11: 2400 | L11: 2400 | M11: 3
A12: 4 | E12: 4 | M12: 4
A13: 5 | B13: 250 | C13: 225 | D13: 250 | E13: 5 MISCELLANEOUS | J13: 250 | K13: 250 | L13: 250 | M13: 5
A14: 6 | B14: 500 | C14: 478 | D14: 500 | E14: 6 FUEL & OIL | J14: 500 | K14: 500 | L14: 500 | M14: 6
A15: 7 | B15: 3000 | C15: 1321 | D15: 3000 | E15: 7 OPERATING MATERIALS & SUPPLIES | J15: 3000 | K15: 3000 | L15: 3000 | M15: 7
A16: 8 | E16: 8 | M16: 8
A17: 9 | B17: 3500 | C17: 637 | D17: 3500 | E17: 9 CONTRACTUAL SERVICES | J17: 3500 | K17: 3500 | L17: 3500 | M17: 9
A18: 10 | B18: 0 | C18: 0 | D18: 0 | E18: 10 WATER (LL, PARK, RR, SHED) | J18: 0 | K18: 0 | L18: 0 | M18: 10
A19: 11 | B19: 750 | C19: 285 | D19: 1000 | E19: 11 EQUIPMENT MAINTENANCE | J19: 1000 | K19: 1000 | L19: 1000 | M19: 11
A20: 12 | E20: 12 | M20: 12
A21: 13 | B21: 3000 | C21: 0 | D21: 3000 | E21: 13 PARK EQUIPMENT REPAIR | J21: 3000 | K21: 3000 | L21: 3000 | M21: 13
A22: 14 | E22: 14 | M22: 14
A23: 15 | E23: 15 TRANSFER TO: | M23: 15
A24: 16 | E24: 16 | M24: 16
A25: 17 | B25: 0 | C25: 0 | D25: 0 | E25: 17 CAPITAL OUTLAY FUND | J25: 0 | K25: 0 | L25: 0 | M25: 17
A26: 18 | E26: 18 | M26: 18
A27: 19 | E27: 19 | M27: 19
A28: 20 | E28: 20 | M28: 20
A29: 21 | E29: 21 | M29: 21
A30: 22 | E30: 22 | M30: 22
A31: 23 | E31: 23 | M31: 23
A32: 24 | E32: 24 | M32: 24
A33: 25 | E33: 25 | M33: 25
A34: 26 | E34: 26 | M34: 26
A35: 27 | E35: 27 | M35: 27
A36: 28 | E36: 28 | M36: 28
A37: 29 | E37: 29 | M37: 29
A38: 30 | E38: 30 | M38: 30
A39: 31 | E39: 31 Ending balance (prior years) | M39: 31
A40: 32 | E40: 32 UNAPPROPRIATED ENDING FUND BALANCE | M40: 32
A41: 33 | B41: =SUM(B9:B39) -> 26300 | C41: =SUM(C9:C39) -> 13039 | D41: =SUM(D9:D40) -> 26850 | E41: 33 TOTAL REQUIREMENTS | J41: =SUM(J9:J40) -> 26850 | K41: =SUM(K9:K40) -> 26850 | L41: =SUM(L9:L40) -> 26850 | M41: 33
B42: 150-504-031 (Rev 12/09)

Sheet LB-20 Water
B1: FORM | E1: RESOURCES
B2: LB-20 | E2: WATER | F2: CITY OF ADAMS
E3: (Fund) | F3: (Name of Municipal Corporation)
B4: Historical Data | E4: RESOURCE DESCRIPTION | F4: Budget for Next Year 2020-2021
B5: Actual | D5: Adopted Budget | F5: Proposed By Budget Officer | G5: Approved By Budget Committee | H5: Adopted By Governing Body
B6: Second Preceding | C6: First Preceding | D6: This Year
B7: Year '17-'18 | C7: Year '18-'19 | D7: 19-'20
A9: 1 | B9: 51500 | C9: 25526 | D9: 23700 | E9: 1. Available cash on hand* (cash basis) or | F9: 39499 | G9: 39499 | H9: 39499 | I9: 1
A10: 2 | E10: 2. Net working capital (accrual basis) | I10: 2
A11: 3 | E11: 3. Previously levied taxes estimated to be received | I11: 3
A12: 4 | B12: 50 | C12: 16 | D12: 25 | E12: 4. Interest | F12: 576 | G12: 576 | H12: 576 | I12: 4
A13: 5 | C13: 0 | D13: 0 | E13: 5. Transferred IN, from other funds-WATER LOAN | I13: 5
A14: 6 | E14: 6 OTHER RESOURCES | I14: 6
A15: 7 | B15: 98153 | C15: 92683 | D15: 105000 | E15: 7 WATER SALES / DELIVERY | F15: 113000 | G15: 113000 | H15: 113000 | I15: 7
A16: 8 | B16: 140 | C16: 353 | D16: 100 | E16: 8 MISCELLANEOUS | F16: 100 | G16: 100 | H16: 100 | I16: 8
A17: 9 | B17: 871 | C17: 1622 | D17: 1500 | E17: 9 USER FEES | F17: 1500 | G17: 1500 | H17: 1500 | I17: 9
A18: 10 | B18: 0 | C18: 0 | D18: 1000 | E18: 10 WATER METERS | F18: 1000 | G18: 1000 | H18: 1000 | I18: 10
A19: 11 | B19: 856 | C19: 1001 | D19: 1500 | E19: 11 CHECK VALVE FEES | F19: 1500 | G19: 1500 | H19: 1500 | I19: 11
A20: 12 | B20: 2080 | C20: 2879 | D20: 2500 | E20: 12 LATE FEES | F20: 2500 | G20: 2500 | H20: 2500 | I20: 12
A21: 13 | E21: 13 | I21: 13
A22: 14 | E22: 14 | I22: 14
A23: 15 | E23: 15 | I23: 15
A24: 16 | E24: 16 | I24: 16
A25: 17 | E25: 17 | I25: 17
A26: 18 | E26: 18 | I26: 18
A27: 19 | E27: 19 | I27: 19
A28: 20 | E28: 20 | I28: 20
A29: 21 | E29: 21 | I29: 21
A30: 22 | E30: 22 | I30: 22
A31: 23 | E31: 23 | I31: 23
A32: 24 | E32: 24 | I32: 24
A33: 25 | E33: 25 | I33: 25
A34: 26 | E34: 26 | I34: 26
A35: 27 | E35: 27 | I35: 27
A36: 28 | E36: 28 | I36: 28
A37: 29 | B37: 183150 | C37: 98554 | D37: =SUM(D9:D36) -> 135325 | E37: 29. Total resources, except taxes to be levied | F37: =SUM(F9:F36) -> 159675 | G37: =SUM(G9:G36) -> 159675 | H37: =SUM(H9:H36) -> 159675 | I37: 29
A38: 30 | E38: 30. Taxes estimated to be received | I38: 30
A39: 31 | E39: 31. Taxes collected in year levied | I39: 31
A40: 32 | B40: =B37+B39 -> 183150 | C40: =C37+C39 -> 98554 | D40: =D37+D38 -> 135325 | E40: 32. TOTAL RESOURCES | F40: =F37+F38 -> 159675 | G40: =G37+G38 -> 159675 | H40: =H37+H38 -> 159675 | I40: 32
E41: *Includes ending balance from prior year | F41: =IF(NOT(F40='LB-30 Water Req'!F41),"RESOURCES <> REQUIREMENTS", "") -> 

Sheet LB-30 Water Req
D1: REQUIREMENTS SUMMARY
B2: FORM | D2: BY FUND, ORGANIZATIONAL UNIT OR PROGRAM
B3: LB-30 | D3: CITY OF ADAMS-WATER-WATER
D4: (name of organizational unit - fund)
B5: Historical Data | E5: REQUIREMENTS DESCRIPTION | F5: Budget For Next Year 2020-2021
B6: Actual | D6: Adopted Budget
B7: Second Preceding | C7: First Preceding | D7: This Year | F7: Proprosed By | G7: Approved By | H7: Adopted By
B8: Year '17-'18 | C8: Year '18-'19 | D8: 19-'20 | F8: Budget Officer | G8: Budget Committee | H8: Governing Body
E9: PERSONAL SERVICES
A10: 1 | B10: 19000 | C10: 12686 | D10: 19000 | E10: 1 WATER CLERK/ASSISTANT | F10: ='LB-31 Water D Req'!J9 -> 19000 | G10: 19000 | H10: 19000 | I10: 1
A11: 2 | B11: 20800 | C11: 21895 | D11: 22000 | E11: 2 WATER LABORER | F11: ='LB-31 Water D Req'!J10 -> 22000 | G11: 22000 | H11: 25000 | I11: 2
A12: 3 | B12: 3900 | C12: 3230 | D12: 4100 | E12: 3 PAYROLL TAXES | F12: ='LB-31 Water D Req'!J11 -> 4100 | G12: 4100 | H12: 4100 | I12: 3
A13: 4 | B13: 7500 | C13: 3983 | D13: 8000 | E13: 4 BENEFITS | F13: ='LB-31 Water D Req'!J12 -> 8000 | G13: 8000 | H13: 8000 | I13: 4
A14: 5 | E14: 5 | I14: 5
A15: 6 | E15: 6 | I15: 6
A16: 7 | B16: =SUM(B10:B15) -> 51200 | C16: =SUM(C10:C15) -> 41794 | D16: =SUM(D10:D15) -> 53100 | E16: 7 TOTAL PERSONAL SERVICES | F16: =SUM(F10:F15) -> 53100 | G16: =SUM(G10:G15) -> 53100 | H16: =SUM(H10:H15) -> 56100 | I16: 7
E17: MATERIALS AND SERVICES
A18: 8 | B18: 8000 | C18: 8000 | D18: 6250 | E18: 8 MATERIALS & SUPPLIES | F18: =SUM('LB-31 Water D Req'!J14:J17) -> 6250 | G18: 6250 | H18: 6250 | I18: 8
A19: 9 | E19: 9 | I19: 9
A20: 10 | B20: 26200 | C20: 3312 | D20: 27300 | E20: 10 CONTRACTUAL SERVICES | F20: =SUM('LB-31 Water D Req'!J19:J25) -> 31800 | G20: 31800 | H20: 31800 | I20: 10
A21: 11 | E21: 11 | I21: 11
A22: 12 | B22: 45000 | C22: 21113 | D22: 21500 | E22: 12 DEBT SERVICE | F22: =SUM('LB-31 Water D Req'!J27:J28) -> 22500 | G22: 22500 | H22: 22500 | I22: 12
A23: 13 | E23: 13 | I23: 13
A24: 14 | B24: =SUM(B18:B23) -> 79200 | C24: 45758 | D24: =SUM(D18:D23) -> 55050 | E24: 14 TOTAL MATERIALS AND SERVICES | F24: =SUM(F18:F23) -> 60550 | G24: =SUM(G18:G23) -> 60550 | H24: =SUM(H18:H23) -> 60550 | I24: 14
E25: CAPITAL OUTLAY
A26: 15 | B26: 2000 | C26: 0 | D26: 2000 | E26: 15 WATER METERS | F26: ='LB-31 Water D Req'!J30 -> 2000 | G26: 2000 | H26: 2000 | I26: 15
A27: 16 | B27: 500 | C27: 0 | D27: 500 | E27: 16 TOOLS | F27: ='LB-31 Water D Req'!J31 -> 500 | G27: 500 | H27: 500 | I27: 16
A28: 17 | B28: 5000 | C28: 1377 | D28: 4500 | E28: 17 SYSTEM IMPROVEMENTS | F28: ='LB-31 Water D Req'!J32 -> 4500 | G28: 4500 | H28: 4500 | I28: 17
A29: 18 | B29: 5000 | C29: 0 | D29: 4500 | E29: 18 SYSTEM MAINTENANCE | F29: ='LB-31 Water D Req'!J33 -> 4500 | G29: 4500 | H29: 4500 | I29: 18
A30: 19 | B30: 7000 | C30: 7000 | D30: 7000 | E30: 19 FEES IN LIEU OF FRANCHISE FEE GEN FUND | F30: ='LB-31 Water D Req'!J34 -> 7000 | G30: 7000 | H30: 7000 | I30: 19
A31: 20 | E31: 20 | I31: 20
A32: 21 | B32: =SUM(B26:B31) -> 19500 | C32: =SUM(C26:C31) -> 8377 | D32: =SUM(D26:D31) -> 18500 | E32: 21 TOTAL CAPITAL OUTLAY | F32: =SUM(F26:F31) -> 18500 | G32: =SUM(G26:G31) -> 18500 | H32: =SUM(H26:H31) -> 18500 | I32: 21
E33: TRANSFERRED TO OTHER FUNDS
A34: 22 | B34: 4000 | C34: 4000 | E34: 22 RESERVE LOAN FUND | F34: ='LB-31 Water D Req'!$J$35 -> 0 | G34: 0 | H34: 0 | I34: 22
A35: 23 | B35: 5000 | C35: 5000 | E35: 23 SYSTEM REPLACEMENT FUND | F35: ='LB-31 Water D Req'!$J$36 -> 0 | G35: 0 | H35: 0 | I35: 23
A36: 24 | B36: 10000 | C36: 10000 | D36: 0 | E36: 24 CAPITAL OUTLAY FUND | F36: ='LB-31 Water D Req'!$J$37 -> 0 | G36: 0 | H36: 0 | I36: 24
A37: 25 | B37: =SUM(B34:B36) -> 19000 | C37: =SUM(C34:C36) -> 19000 | D37: =SUM(D34:D36) -> 0 | E37: 25 TOTAL TRANSFERS | F37: =SUM(F34:F36) -> 0 | G37: 0 | H37: 0 | I37: 25
C38: 14250 | D38: 8675 | E38: 26 OPERATING CONTINGENCY | F38: 27525 | G38: 27525 | H38: 24525
A39: 26 | B39: 0 | E39: 27 Ending balance (prior years) | I39: 26
A40: 27 | F40: 0 | I40: 27
A41: 28 | B41: =+B16+B24+B32+B37+B39 -> 168900 | C41: 183150 | D41: =+D16+D24+D32+D37+D38+D39+D40 -> 135325 | E41: 29 TOTAL REQUIREMENTS | F41: =+F16+F24+F32+F37+F38+F39+F40 -> 159675 | G41: =+G16+G24+G32+G37+G38+G39+G40 -> 159675 | H41: =+H16+H24+H32+H37+H38+H39+H40 -> 159675 | I41: 28
B42: 150-504-030 (Rev 12/09) | F42: =IF(NOT(F41='LB-20 Water'!F40),"RESOURCES <> REQUIREMENTS", "") -> 

Sheet LB-31 Water D Req
E1: DETAILED REQUIREMENTS
B2: FORM
B3: LB-31 | E3: CITY OF ADAMS-WATER-WATER
E4: (Name of Organizational Unit - Fund)
B5: Historical Data | E5: REQUIREMENTS DESCRIPTION | H5: Number of Employ-ees | I5: Range* | J5: Budget for Next Year 2020-2021
B6: Actual | D6: Adopted Budget
B7: Second Preceding | C7: First Preceding | D7: This Year | J7: Proposed by | K7: Approved by | L7: Adopted by
B8: Year '17-'18 | C8: Year '18-'19 | D8: 19-'20 | J8: Budget Officer | K8: Budget Committee | L8: Governing Body
A9: 1 | B9: 19000 | C9: 12686 | D9: 19000 | E9: 1 WATER CLERK/ASSISTANT | H9: 0.5 | J9: 19000 | K9: 19000 | L9: 19000 | M9: 1
A10: 2 | B10: 20800 | C10: 21895 | D10: 22000 | E10: 2 WATER LABORER | H10: 0.5 | J10: 22000 | K10: 22000 | L10: 25000 | M10: 2
A11: 3 | B11: 3900 | C11: 3230 | D11: 4100 | E11: 3 PAYROLL TAXES | J11: 4100 | K11: 4100 | L11: 4100 | M11: 3
A12: 4 | B12: 7500 | C12: 3981 | D12: 8000 | E12: 4 BENEFITS | J12: 8000 | K12: 8000 | L12: 8000 | M12: 4
A13: 5 | E13: 5 | M13: 5
A14: 6 | B14: 4500 | C14: 1789 | D14: 3000 | E14: 6 SUPPLIES | J14: 3000 | K14: 3000 | L14: 3000 | M14: 6
A15: 7 | B15: 2500 | C15: 1508 | D15: 2500 | E15: 7 STAMPS & OFFICE SUPPLIES | J15: 2500 | K15: 2500 | L15: 2500 | M15: 7
A16: 8 | B16: 500 | C16: 98 | D16: 250 | E16: 8 MISCELLANEOUS | J16: 250 | K16: 250 | L16: 250 | M16: 8
A17: 9 | B17: 500 | C17: 481 | D17: 500 | E17: 9 FUEL & OIL | J17: 500 | K17: 500 | L17: 500 | M17: 9
A18: 10 | E18: 10 | M18: 10
A19: 11 | B19: 2000 | C19: 2135 | D19: 2000 | E19: 11 WATER QUALITY MONITORING | J19: 5000 | K19: 5000 | L19: 5000 | M19: 11
A20: 12 | B20: 14000 | C20: 9918 | D20: 15000 | E20: 12 P. P. & L. (ELECTRICITY) | J20: 15000 | K20: 15000 | L20: 15000 | M20: 12
A21: 13 | B21: 3000 | C21: 2950 | D21: 3000 | E21: 13 INSURANCE | J21: 3000 | K21: 3000 | L21: 3000 | M21: 13
A22: 14 | B22: 3500 | C22: 3312 | D22: 3500 | E22: 14 CONTRACTUAL SERVICES | J22: 5000 | K22: 5000 | L22: 5000 | M22: 14
A23: 15 | B23: 1000 | C23: 0 | D23: 500 | E23: 15 TRAINING | J23: 500 | K23: 500 | L23: 500 | M23: 15
A24: 16 | B24: 500 | C24: 203 | D24: 500 | E24: 16 EQUIPMENT MAINTENANCE | J24: 500 | K24: 500 | L24: 500 | M24: 16
A25: 17 | B25: 2200 | C25: 2188 | D25: 2800 | E25: 17 COMMUNICATION | J25: 2800 | K25: 2800 | L25: 2800 | M25: 17
A26: 18 | E26: 18 | M26: 18
A27: 19 | B27: 30000 | C27: 7567 | D27: 11500 | E27: 19 PRINCIPAL | J27: 8500 | K27: 8500 | L27: 8500 | M27: 19
A28: 20 | B28: 15000 | C28: 13545 | D28: 10000 | E28: 20 INTEREST | J28: 14000 | K28: 14000 | L28: 14000 | M28: 20
A29: 21 | E29: 21 | M29: 21
A30: 22 | B30: 2000 | C30: 0 | D30: 2000 | E30: 22 WATER METERS | J30: 2000 | K30: 2000 | L30: 2000 | M30: 22
A31: 23 | B31: 500 | C31: 0 | D31: 500 | E31: 23 TOOLS | J31: 500 | K31: 500 | L31: 500 | M31: 23
A32: 24 | B32: 5000 | C32: 1377 | D32: 4500 | E32: 24 SYSTEM IMPROVEMENTS | J32: 4500 | K32: 4500 | L32: 4500 | M32: 24
A33: 25 | B33: 5000 | C33: 0 | D33: 4500 | E33: 25 SYSTEM MAINTENANCE | J33: 4500 | K33: 4500 | L33: 4500 | M33: 25
A34: 26 | B34: 7000 | C34: 7000 | D34: 7000 | E34: 26 FEES IN LIEU OF FRANCHISE FEE TO GENERAL FUND | J34: 7000 | K34: 7000 | L34: 7000 | M34: 26
A35: 27 | B35: 4000 | C35: 4000 | D35: 0 | E35: 27 TRANSFER TO RESERVE LOAN FUND | M35: 27
A36: 28 | B36: 5000 | C36: 5000 | D36: 0 | E36: 28 TRANSFER TO SYSTEM REPLACEMENT FUND | M36: 28
A37: 29 | B37: 10000 | C37: 10000 | D37: 0 | E37: 29 TRANSFER TO CAPITAL OUTLAY FUND | M37: 29
A38: 30 | B38: 14250 | C38: 14250 | D38: 8675 | E38: 30 CONTINGENCY | J38: 27525 | K38: 27525 | L38: 24525 | M38: 30
A39: 31 | B39: 0 | E39: 31 Ending balance (prior years) | M39: 31
A40: 32 | E40: 32 UNAPPROPRIATED ENDING FUND BALANCE | J40: 0 | M40: 32
A41: 33 | B41: =SUM(B9:B40) -> 183150 | C41: =SUM(C9:C40) -> 129113 | D41: =SUM(D9:D40) -> 135325 | E41: 33 TOTAL REQUIREMENTS | J41: =SUM(J9:J40) -> 159675 | K41: =SUM(K9:K40) -> 159675 | L41: =SUM(L9:L40) -> 159675 | M41: 33
B42: 150-504-031 (Rev 12/09)

Sheet LB-20 State Street
B1: FORM | E1: RESOURCES
B2: LB-20 | E2: GAS TAX | F2: CITY OF ADAMS
E3: (Fund) | F3: (Name of Municipal Corporation)
B4: Historical Data | E4: RESOURCE DESCRIPTION | F4: Budget for Next Year 2020-2021
B5: Actual | D5: Adopted Budget | F5: Proposed By Budget Officer | G5: Approved By Budget Committee | H5: Adopted By Governing Body
B6: Second Preceding | C6: First Preceding | D6: This Year
B7: Year '17-'18 | C7: Year '18-'19 | D7: 19-'20
A9: 1 | B9: 21500 | C9: 18370 | D9: 28500 | E9: 1. Available cash on hand* (cash basis) or | F9: 44713 | G9: 44713 | H9: 44713 | I9: 1
A10: 2 | E10: 2. Net working capital (accrual basis) | I10: 2
A11: 3 | E11: 3. Previously levied taxes estimated to be received | I11: 3
A12: 4 | B12: 20 | C12: 7 | D12: 15 | E12: 4. Interest | F12: 700 | G12: 700 | H12: 700 | I12: 4
A13: 5 | B13: 7000 | C13: 7000 | D13: 7000 | E13: 5. Transferred IN, from other funds-GENERAL | F13: 7000 | G13: 7000 | H13: 7000 | I13: 5
A14: 6 | E14: 6 OTHER RESOURCES | I14: 6
A15: 7 | E15: 7 | I15: 7
A16: 8 | B16: 24200 | C16: 27312 | D16: 29500 | E16: 8 STATE GAS TAXES | F16: 25000 | G16: 25000 | H16: 25000 | I16: 8
A17: 9 | B17: 50000 | C17: 0 | D17: 50000 | E17: 9 SMALL CITY GRANT | F17: 0 | G17: 0 | H17: 0 | I17: 9
A18: 10 | B18: 200 | C18: 0 | D18: 200 | E18: 10 MISCELLANEOUS | F18: 18200 | G18: 18200 | H18: 18200 | I18: 10
A19: 11 | B19: 9300 | C19: 9268 | D19: 9300 | E19: 11 P. P. & L. FRANCHISE | F19: 9300 | G19: 9300 | H19: 9300 | I19: 11
A20: 12 | E20: 12 | I20: 12
A21: 13 | E21: 13 | I21: 13
A22: 14 | E22: 14 | I22: 14
A23: 15 | E23: 15 | I23: 15
A24: 16 | E24: 16 | I24: 16
A25: 17 | E25: 17 | I25: 17
A26: 18 | E26: 18 | I26: 18
A27: 19 | E27: 19 | I27: 19
A28: 20 | E28: 20 | I28: 20
A29: 21 | E29: 21 | I29: 21
A30: 22 | E30: 22 | I30: 22
A31: 23 | E31: 23 | I31: 23
A32: 24 | E32: 24 | I32: 24
A33: 25 | E33: 25 | I33: 25
A34: 26 | E34: 26 | I34: 26
A35: 27 | E35: 27 | I35: 27
A36: 28 | E36: 28 | I36: 28
A37: 29 | B37: =SUM(B9:B23) -> 112220 | C37: 36587 | D37: =SUM(D9:D36) -> 124515 | E37: 29. Total resources, except taxes to be levied | F37: =SUM(F9:F36) -> 104913 | G37: =SUM(G9:G36) -> 104913 | H37: =SUM(H9:H36) -> 104913 | I37: 29
A38: 30 | E38: 30. Taxes estimated to be received | I38: 30
A39: 31 | E39: 31. Taxes collected in year levied | I39: 31
A40: 32 | B40: =B37+B39 -> 112220 | C40: =C37+C39 -> 36587 | D40: =D37+D38 -> 124515 | E40: 32. TOTAL RESOURCES | F40: =F37+F38 -> 104913 | G40: =G37+G38 -> 104913 | H40: =H37+H38 -> 104913 | I40: 32
E41: *Includes ending balance from prior year | F41: =IF(NOT(F40='LB-30 Streets Req'!F41),"RESOURCES <> REQUIREMENTS", "") -> 

Sheet LB-30 Streets Req
D1: REQUIREMENTS SUMMARY
B2: FORM | D2: BY FUND, ORGANIZATIONAL UNIT OR PROGRAM
B3: LB-30 | D3: CITY OF ADAMS-STREETS-GAS TAX
D4: (name of organizational unit - fund)
B5: Historical Data | E5: REQUIREMENTS DESCRIPTION | F5: Budget For Next Year 2020-2021
B6: Actual | D6: Adopted Budget
B7: Second Preceding | C7: First Preceding | D7: This Year | F7: Proprosed By | G7: Approved By | H7: Adopted By
B8: Year '17-'18 | C8: Year '18-'19 | D8: 19-'20 | F8: Budget Officer | G8: Budget Committee | H8: Governing Body
E9: PERSONAL SERVICES
A10: 1 | B10: 13500 | C10: 10504 | D10: 14500 | E10: 1 MAINTENANCE PERSON | F10: ='LB-31 Streets D Req'!J9 -> 14500 | G10: 14500 | H10: 14500 | I10: 1
A11: 2 | B11: 1350 | C11: 910 | D11: 1450 | E11: 2 PAYROLL TAXES | F11: ='LB-31 Streets D Req'!J10 -> 1450 | G11: 1450 | H11: 1450 | I11: 2
A12: 3 | B12: 2300 | C12: 1816 | D12: 2600 | E12: 3 BENEFITS | F12: ='LB-31 Streets D Req'!J11 -> 2600 | G12: 2600 | H12: 2600 | I12: 3
A13: 4 | E13: 4 | I13: 4
A14: 5 | E14: 5 | I14: 5
A15: 6 | E15: 6 | I15: 6
A16: 7 | B16: =SUM(B10:B15) -> 17150 | C16: =SUM(C10:C15) -> 13230 | D16: =SUM(D10:D15) -> 18550 | E16: 7 TOTAL PERSONAL SERVICES | F16: =SUM(F10:F15) -> 18550 | G16: =SUM(G10:G15) -> 18550 | H16: =SUM(H10:H15) -> 18550 | I16: 7
E17: MATERIALS AND SERVICES
A18: 8 | E18: 8 | I18: 8
A19: 9 | B19: 4750 | C19: 10300 | D19: 4250 | E19: 9 MATERIALS & SUPPLIES | F19: =SUM('LB-31 Streets D Req'!J13:J15) -> 2750 | G19: 2750 | H19: 2750 | I19: 9
A20: 10 | E20: 10 | I20: 10
A21: 11 | B21: 25500 | C21: 493 | D21: 27500 | E21: 11 CONTRACTUAL SERVICES | F21: 37700 | G21: 37700 | H21: 37700 | I21: 11
A22: 12 | E22: 12 | I22: 12
A23: 13 | E23: 13 | I23: 13
A24: 14 | B24: =SUM(B18:B23) -> 30250 | C24: =SUM(C18:C23) -> 10793 | D24: =SUM(D18:D23) -> 31750 | E24: 14 TOTAL MATERIALS AND SERVICES | F24: =SUM(F18:F23) -> 40450 | G24: =SUM(G18:G23) -> 40450 | H24: =SUM(H18:H23) -> 40450 | I24: 14
E25: CAPITAL OUTLAY
A26: 15 | B26: 50000 | C26: 0 | D26: 50000 | E26: 15 STREET IMPROVEMENT | F26: ='LB-31 Streets D Req'!$J$26 -> 15000 | G26: 15000 | H26: 15000 | I26: 15
A27: 16 | B27: 14820 | C27: 0 | D27: 24215 | E27: 16 BRIDGE IMPROVEMENT | F27: ='LB-31 Streets D Req'!$J$27 -> 30913 | G27: 30193 | H27: 30193 | I27: 16
A28: 17 | E28: 17 | I28: 17
A29: 18 | E29: 18 CITY EQUIPMENT | I29: 18
A30: 19 | E30: 19 | I30: 19
A31: 20 | E31: 20 | I31: 20
A32: 21 | B32: =SUM(B26:B31) -> 64820 | C32: =SUM(C26:C31) -> 0 | D32: =SUM(D26:D31) -> 74215 | E32: 21 TOTAL CAPITAL OUTLAY | F32: 45913 | G32: =SUM(G26:G31) -> 45193 | H32: =SUM(H26:H31) -> 45193 | I32: 21
E33: TRANSFERRED TO OTHER FUNDS
A34: 22 | B34: 0 | C34: 0 | D34: 0 | E34: 22 CAPTIAL OUTLAY FUND | F34: =-'LB-31 Streets D Req'!$J$30 -> 0 | G34: 0 | H34: 0 | I34: 22
A35: 23 | E35: 23 | I35: 23
A36: 24 | E36: 24 | I36: 24
A37: 25 | B37: =SUM(B34:B36) -> 0 | C37: =SUM(C34:C36) -> 0 | D37: =SUM(D34:D36) -> 0 | E37: 25 TOTAL TRANSFERS | F37: =SUM(F34:F36) -> 0 | G37: =SUM(G34:G36) -> 0 | H37: =SUM(H34:H36) -> 0 | I37: 25
E38: 26 OPERATING CONTINGENCY
A39: 26 | B39: 0 | E39: 27 Ending balance (prior years) | I39: 26
A40: 27 | E40: 28 UNAPPROPRIATED ENDING FUND BALANCE | I40: 27
A41: 28 | B41: =+B16+B24+B32+B37+B39 -> 112220 | C41: =+C16+C24+C32+C37+C39+C40 -> 24023 | D41: =+D16+D24+D32+D37+D38+D39+D40 -> 124515 | E41: 29 TOTAL REQUIREMENTS | F41: =+F16+F24+F32+F37+F38+F39+F40 -> 104913 | G41: =+G16+G24+G32+G37+G38+G39+G40 -> 104193 | H41: =+H16+H24+H32+H37+H38+H39+H40 -> 104193 | I41: 28
B42: 150-504-030 (Rev 12/09) | F42: =IF(NOT(F41='LB-20 State Street'!F40),"RESOURCES <> REQUIREMENTS", "") -> 

Sheet LB-31 Streets D Req
E1: DETAILED REQUIREMENTS
B2: FORM
B3: LB-31 | E3: CITY OF ADAMS-STREETS-GAS TAX
E4: (Name of Organizational Unit - Fund)
B5: Historical Data | E5: REQUIREMENTS DESCRIPTION | H5: Number of Employ-ees | I5: Range* | J5: Budget for Next Year 2020-2021
B6: Actual | D6: Adopted Budget
B7: Second Preceding | C7: First Preceding | D7: This Year | J7: Proposed by | K7: Approved by | L7: Adopted by
B8: Year '17-'18 | C8: Year '18-'19 | D8: 19-'20 | J8: Budget Officer | K8: Budget Committee | L8: Governing Body
A9: 1 | B9: 13500 | C9: 10504 | D9: 14500 | E9: 1 MAINTENANCE PERSON | H9: 0.25 | J9: 14500 | K9: 14500 | L9: 14500 | M9: 1
A10: 2 | B10: 1350 | C10: 910 | D10: 1450 | E10: 2 PAYROLL TAXES | J10: 1450 | K10: 1450 | L10: 1450 | M10: 2
A11: 3 | B11: 2300 | C11: 1815 | D11: 2600 | E11: 3 BENEFITS | J11: 2600 | K11: 2600 | L11: 2600 | M11: 3
A12: 4 | E12: 4 | M12: 4
A13: 5 | B13: 2000 | C13: 1395 | D13: 2000 | E13: 5 MATERIALS & SUPPLIES | J13: 2000 | K13: 2000 | L13: 2000 | M13: 5
A14: 6 | B14: 250 | C14: 23 | D14: 250 | E14: 6 MISCELLANEOUS | J14: 250 | K14: 250 | L14: 250 | M14: 6
A15: 7 | B15: 2500 | C15: 144 | D15: 2000 | E15: 7 SIGNS | J15: 500 | K15: 500 | L15: 500 | M15: 7
A16: 8 | E16: 8 | M16: 8
A17: 9 | B17: 500 | C17: 481 | D17: 500 | E17: 9 FUEL & OIL | J17: 600 | K17: 600 | L17: 600 | M17: 9
A18: 10 | B18: 5000 | C18: 6491 | D18: 6500 | E18: 10 P. P. & L. (ELECTRICITY) | J18: 6500 | K18: 6500 | L18: 6500 | M18: 10
A19: 11 | B19: 1000 | C19: 208 | D19: 1500 | E19: 11 EQUIPMENT MAINTENANCE | J19: 500 | K19: 500 | L19: 500 | M19: 11
A20: 12 | B20: 7000 | C20: 492 | D20: 7500 | E20: 12 CONTRACTUAL SERVICE | J20: 25000 | K20: 25000 | L20: 25000 | M20: 12
A21: 13 | B21: 9500 | C21: 0 | D21: 9500 | E21: 13 STREET MAINTENANCE | J21: 3000 | K21: 3000 | L21: 3000 | M21: 13
A22: 14 | B22: 500 | C22: 135 | D22: 500 | E22: 14 TRAINING | J22: 500 | K22: 500 | L22: 500 | M22: 14
A23: 15 | B23: 500 | C23: 0 | D23: 0 | E23: 15 CITY EQUIPMENT REPAIR | J23: 0 | K23: 0 | L23: 0 | M23: 15
A24: 16 | B24: 1500 | C24: 1425 | D24: 1500 | E24: 16 INSURANCE | J24: 1600 | K24: 1600 | L24: 1600 | M24: 16
A25: 17 | E25: 17 | M25: 17
A26: 18 | B26: 50000 | C26: 0 | D26: 50000 | E26: 18 STREET IMPROVEMENT | J26: 15000 | K26: 15000 | L26: 15000 | M26: 18
A27: 19 | B27: 14820 | C27: 0 | D27: 24215 | E27: 19 BRIDGE IMPROVEMENT | J27: 30913 | K27: 30913 | L27: 30913 | M27: 19
A28: 20 | E28: 20 | M28: 20
A29: 21 | E29: 21 | M29: 21
A30: 22 | B30: 0 | E30: 22 TRANSFER TO CAPITAL OUTLAY | J30: 0 | K30: 0 | M30: 22
A31: 23 | E31: 23 | M31: 23
A32: 24 | E32: 24 | M32: 24
A33: 25 | E33: 25 | M33: 25
A34: 26 | E34: 26 | M34: 26
A35: 27 | E35: 27 | M35: 27
A36: 28 | E36: 28 | M36: 28
A37: 29 | E37: 29 | M37: 29
A38: 30 | E38: 30 | M38: 30
A39: 31 | B39: 0 | E39: 31 Ending balance (prior years) | M39: 31
A40: 32 | E40: 32 UNAPPROPRIATED ENDING FUND BALANCE | M40: 32
A41: 33 | B41: =SUM(B9:B39) -> 112220 | C41: =SUM(C9:C39) -> 24023 | D41: =SUM(D9:D39) -> 124515 | E41: 33 TOTAL REQUIREMENTS | J41: =SUM(J9:J40) -> 104913 | K41: =SUM(K9:K40) -> 104913 | L41: =SUM(L9:L40) -> 104913 | M41: 33
B42: 150-504-031 (Rev 12/09)

Sheet LB-20 Library
B1: FORM | E1: RESOURCES
B2: LB-20 | E2: LIBRARY | F2: CITY OF ADAMS
B4: Historical Data | E4: RESOURCE DESCRIPTION | F4: Budget for Next Year 2020-2021
B5: Actual | D5: Adopted Budget | F5: Proposed By Budget Officer | G5: Approved By Budget Committee | H5: Adopted By Governing Body
B6: Second Preceding | C6: First Preceding | D6: This Year
B7: Year '17-'18 | C7: Year '18-'19 | D7: 19-'20
A9: 1 | B9: 8500 | C9: 18708 | D9: 16111 | E9: 1. Available cash on hand* (cash basis) or | F9: 25360 | G9: 25360 | H9: 25360 | I9: 1
A10: 2 | E10: 2. Net working capital (accrual basis) | I10: 2
A11: 3 | E11: 3. Previously levied taxes estimated to be received | I11: 3
A12: 4 | E12: 4. Interest | I12: 4
A13: 5 | E13: 5. Transferred IN, from other funds | I13: 5
A14: 6 | E14: 6 OTHER RESOURCES | I14: 6
A15: 7 | B15: 25500 | C15: 29797 | D15: 30000 | E15: 7 SPECIAL LIBRARY DISTRICT | F15: 30000 | G15: 30000 | H15: 30000 | I15: 7
A16: 8 | B16: 1000 | C16: 982 | D16: 1000 | E16: 8 MISCELLANEOUS | F16: 1000 | G16: 1000 | H16: 1000 | I16: 8
A17: 9 | B17: 300 | C17: 0 | D17: 0 | E17: 9 DONATIONS | F17: 100 | G17: 100 | H17: 100 | I17: 9
A18: 10 | B18: 2000 | C18: 4000 | D18: 1000 | E18: 10 GRANTS | F18: 1000 | G18: 1000 | H18: 1000 | I18: 10
A19: 11 | C19: 0 | D19: 500 | E19: 11 WINDMILL | F19: 500 | G19: 500 | H19: 500 | I19: 11
A20: 12 | E20: 12 | I20: 12
A21: 13 | E21: 13 | I21: 13
A22: 14 | E22: 14 TRANSFER FROM: | I22: 14
A23: 15 | B23: 7000 | C23: 7000 | D23: 0 | E23: 15 GENERAL FUND | F23: 10000 | G23: 10000 | H23: 10000 | I23: 15
A24: 16 | E24: 16 | I24: 16
A25: 17 | E25: 17 | I25: 17
A26: 18 | E26: 18 | I26: 18
A27: 19 | E27: 19 | I27: 19
A28: 20 | E28: 20 | I28: 20
A29: 21 | E29: 21 | I29: 21
A30: 22 | E30: 22 | I30: 22
A31: 23 | E31: 23 | I31: 23
A32: 24 | E32: 24 | I32: 24
A33: 25 | E33: 25 | I33: 25
A34: 26 | E34: 26 | I34: 26
A35: 27 | E35: 27 | I35: 27
A36: 28 | E36: 28 | I36: 28
A37: 29 | B37: =SUM(B9:B36) -> 44300 | C37: 34779 | D37: =SUM(D9:D23) -> 48611 | E37: 29. Total resources, except taxes to be levied | F37: =SUM(F9:F23) -> 67960 | G37: =SUM(G9:G23) -> 67960 | H37: =SUM(H9:H23) -> 67960 | I37: 29
A38: 30 | E38: 30. Taxes estimated to be received | I38: 30
A39: 31 | E39: 31. Taxes collected in year levied | I39: 31
A40: 32 | B40: =B37+B39 -> 44300 | C40: =C37+C39 -> 34779 | D40: =D37+D38 -> 48611 | E40: 32. TOTAL RESOURCES | F40: =F37+F38 -> 67960 | G40: =G37+G38 -> 67960 | H40: =H37+H38 -> 67960 | I40: 32
E41: *Includes ending balance from prior year | F41: =IF(NOT(F40='LB-30 Library Req'!F41),"RESOURCES <> REQUIREMENTS", "") -> 

Sheet LB-30 Library Req
D1: REQUIREMENTS SUMMARY
B2: FORM | D2: BY FUND, ORGANIZATIONAL UNIT OR PROGRAM
B3: LB-30 | D3: LIBRARY
D4: CITY OF ADAMS
B5: Historical Data | E5: REQUIREMENTS DESCRIPTION | F5: Budget For Next Year 2019-2020
B6: Actual | D6: Adopted Budget
B7: Second Preceding | C7: First Preceding | D7: This Year | F7: Proprosed By | G7: Approved By | H7: Adopted By
B8: Year '17-'18 | C8: Year '18-'19 | D8: 19-'20 | F8: Budget Officer | G8: Budget Committee | H8: Governing Body
E9: PERSONAL SERVICES
A10: 1 | B10: 24500 | C10: 20679 | D10: 29500 | E10: 1 LIBRARIAN/ASSISTANT | F10: ='LB-31 Library D Req'!J9 -> 29500 | G10: 29500 | H10: 29500 | I10: 1
A11: 2 | B11: 2450 | C11: 2007 | D11: 2400 | E11: 2 PAYROLL TAXES | F11: ='LB-31 Library D Req'!J10 -> 2900 | G11: 2900 | H11: 2900 | I11: 2
A12: 3 | B12: 0 | C12: 0 | D12: 0 | E12: 3 BENEFITS | F12: ='LB-31 Library D Req'!J11 -> 8400 | G12: 8400 | H12: 8400 | I12: 3
A13: 4 | E13: 4 | I13: 4
A14: 5 | E14: 5 | I14: 5
A15: 6 | E15: 6 | I15: 6
A16: 7 | B16: =SUM(B10:B15) -> 26950 | C16: =SUM(C10:C15) -> 22686 | D16: =SUM(D10:D15) -> 31900 | E16: 7 TOTAL PERSONAL SERVICES | F16: =SUM(F10:F15) -> 40800 | G16: =SUM(G10:G15) -> 40800 | H16: =SUM(H10:H15) -> 40800 | I16: 7
E17: MATERIALS AND SERVICES
A18: 8 | B18: 5600 | C18: 12931 | D18: 5000 | E18: 8 MATERIALS AND SUPPLIES | F18: 5000 | G18: 5000 | H18: 5000 | I18: 8
A19: 9 | E19: 9 | I19: 9
A20: 10 | B20: 7750 | C20: 45 | D20: 8711 | E20: 10 CONTRACTUAL SERVICES | F20: 11150 | G20: 11150 | H20: 11150 | I20: 10
A21: 11 | E21: 11 | I21: 11
A22: 12 | E22: 12 | I22: 12
A23: 13 | E23: 13 | I23: 13
A24: 14 | B24: =SUM(B18:B23) -> 13350 | C24: =SUM(C18:C23) -> 12976 | D24: =SUM(D18:D23) -> 13711 | E24: 14 TOTAL MATERIALS AND SERVICES | F24: =SUM(F18:F23) -> 16150 | G24: =SUM(G18:G23) -> 16150 | H24: =SUM(H18:H23) -> 16150 | I24: 14
E25: CAPITAL OUTLAY
A26: 15 | E26: 15 | I26: 15
A27: 16 | E27: 16 | I27: 16
A28: 17 | E28: 17 | I28: 17
A29: 18 | E29: 18 | I29: 18
A30: 19 | E30: 19 | I30: 19
A31: 20 | E31: 20 | I31: 20
A32: 21 | B32: =SUM(B26:B31) -> 0 | C32: =SUM(C26:C31) -> 0 | D32: =SUM(D26:D31) -> 0 | E32: 21 TOTAL CAPITAL OUTLAY | F32: =SUM(F26:F31) -> 0 | G32: =SUM(G26:G31) -> 0 | H32: =SUM(H26:H31) -> 0 | I32: 21
E33: TRANSFERRED TO OTHER FUNDS
A34: 22 | E34: 22 TO LIBRARY CAPITAL FUND | I34: 22
A35: 23 | B35: 0 | C35: 0 | D35: 0 | E35: 23 REPAY LOAN | I35: 23
A36: 24 | E36: 24 | I36: 24
A37: 25 | B37: 0 | C37: =SUM(C34:C36) -> 0 | D37: =SUM(D34:D36) -> 0 | E37: 25 TOTAL TRANSFERS | F37: 0 | G37: =SUM(G34:G36) -> 0 | H37: =SUM(H34:H36) -> 0 | I37: 25
A38: 26 | E38: 26 OPERATING CONTINGENCY | F38: 11010 | G38: 11010 | H38: 11010 | I38: 26
A39: 27 | B39: 0 | E39: 27 Ending balance (prior years) | I39: 27
A40: 28 | C40: 22550 | D40: 3000 | E40: 28 UNAPPROPRIATED ENDING FUND BALANCE | F40: 0 | I40: 28
A41: 29 | B41: =+B16+B24+B32+B37+B39 -> 40300 | C41: =+C16+C24+C32+C37+C39+C40 -> 58212 | D41: =+D16+D24+D32+D37+D38+D39+D40 -> 48611 | E41: 29 TOTAL REQUIREMENTS | F41: =+F16+F24+F32+F37+F38+F39+F40 -> 67960 | G41: =+G16+G24+G32+G37+G38+G39+G40 -> 67960 | H41: =+H16+H24+H32+H37+H38+H39+H40 -> 67960 | I41: 29
B42: 150-504-030 (Rev 12/09) | F42: =IF(NOT(F41='LB-20 Library'!F40),"RESOURCES <> REQUIREMENTS", "") -> 

Sheet LB-31 Library D Req
E1: DETAILED REQUIREMENTS
B2: FORM
B3: LB-31 | E3: LIBRARY
E4: CITY OF ADAMS
B5: Historical Data | E5: REQUIREMENTS DESCRIPTION | H5: Number of Employ-ees | I5: Range* | J5: Budget for Next Year 2020-2021
B6: Actual | D6: Adopted Budget
B7: Second Preceding | C7: First Preceding | D7: This Year | J7: Proposed by | K7: Approved by | L7: Adopted by
B8: Year '17-'18 | C8: Year '18-'19 | D8: 19-'20 | J8: Budget Officer | K8: Budget Committee | L8: Governing Body
A9: 1 | B9: 24500 | C9: 20679 | D9: 29500 | E9: 1 LIBRARIAN/ASSISTANT | H9: 1.0 | J9: 29500 | K9: 29500 | L9: 29500 | M9: 1
A10: 2 | B10: 2450 | C10: 2007 | D10: 2400 | E10: 2 PAYROLL TAXES | J10: 2900 | K10: 2900 | L10: 2900 | M10: 2
A11: 3 | B11: 0 | C11: 2274 | D11: 0 | E11: 3 BENEFITS | J11: 8400 | K11: 8400 | L11: 8400 | M11: 3
A12: 4 | E12: 4 | M12: 4
A13: 5 | B13: 2100 | C13: 2154 | D13: 2000 | E13: 5 SUPPLIES | J13: 2000 | K13: 2000 | L13: 2000 | M13: 5
A14: 6 | B14: 3500 | C14: 5421 | D14: 3000 | E14: 6 BOOKS & MAGAZINES | J14: 3000 | K14: 3000 | L14: 3000 | M14: 6
A15: 7 | E15: 7 | M15: 7
A16: 8 | B16: 750 | C16: 615 | D16: 750 | E16: 8 INSURANCE | J16: 750 | K16: 750 | L16: 750 | M16: 8
A17: 9 | B17: 2350 | C17: 1956 | D17: 2261 | E17: 9 SPECIAL PROGRAMS | J17: 4500 | K17: 4500 | L17: 4500 | M17: 9
A18: 10 | B18: 1500 | C18: 1317 | D18: 1700 | E18: 10 COMMUNICATION | J18: 1700 | K18: 1700 | L18: 1700 | M18: 10
A19: 11 | B19: 500 | C19: 261 | D19: 1000 | E19: 11 EQUIPMENT MAINTENANCE | J19: 500 | K19: 500 | L19: 500 | M19: 11
A20: 12 | B20: 263 | C20: 14 | D20: 500 | E20: 12 STAFF TRAINING | J20: 1000 | K20: 1000 | L20: 1000 | M20: 12
A21: 13 | B21: 1250 | C21: 1194 | D21: 1500 | E21: 13 ELECTRICITY | J21: 1500 | K21: 1500 | L21: 1500 | M21: 13
A22: 14 | B22: 500 | C22: 0 | D22: 500 | E22: 14 MILEAGE | J22: 1000 | K22: 1000 | L22: 1000 | M22: 14
A23: 15 | B23: 400 | C23: 45 | D23: 500 | E23: 15 CONTRACTUAL SERVICES | J23: 200 | K23: 200 | L23: 200 | M23: 15
A24: 16 | E24: 16 | M24: 16
A25: 17 | E25: 17 | M25: 17
A26: 18 | E26: 18 | M26: 18
A27: 19 | B27: 0 | C27: 0 | D27: 0 | E27: 19 PAY BACK LOAN | J27: 0 | K27: 0 | L27: 0 | M27: 19
A28: 20 | E28: 20 | M28: 20
A29: 21 | E29: 21 | M29: 21
A30: 22 | E30: 22 | M30: 22
A31: 23 | E31: 23 | M31: 23
A32: 24 | E32: 24 | M32: 24
A33: 25 | E33: 25 | M33: 25
A34: 26 | E34: 26 | M34: 26
A35: 27 | E35: 27 | M35: 27
A36: 28 | C36: =SUM(C9:C24) -> 37937 | D36: =SUM(D9:D24) -> 45611 | E36: 25 TOTAL EXPENDITURES | J36: =SUM(J9:J27) -> 56950 | K36: =SUM(K9:K24) -> 56950 | L36: =SUM(L9:L24) -> 56950 | M36: 28
A37: 29 | E37: 29 | M37: 29
A38: 30 | E38: 30 OPERATING CONTINGENCY | J38: 11010 | K38: 11010 | L38: 11010 | M38: 30
A39: 31 | B39: 8057 | C39: 22550 | E39: 31 Ending balance (prior years) | M39: 31
A40: 32 | C40: 0 | D40: 0 | E40: 32 UNAPPROPRIATED ENDING FUND BALANCE | J40: 0 | M40: 32
A41: 33 | B41: =SUM(B9:B39) -> 48120 | C41: 44300 | D41: =D36+D40 -> 45611 | E41: 33 TOTAL REQUIREMENTS | J41: =J36+J38+J40 -> 67960 | K41: =K36+K38+K40 -> 67960 | L41: =L36+L38+L40 -> 67960 | M41: 33
B42: 150-504-031 (Rev 12/09)

Sheet LB-20 State Rev
B1: FORM | E1: RESOURCES
B2: LB-20 | E2: STATE REVENUE SHARING | F2: CITY OF ADAMS
E3: (Fund) | F3: (Name of Municipal Corporation)
B4: Historical Data | E4: RESOURCE DESCRIPTION | F4: Budget for Next Year 2020-2021
B5: Actual | D5: Adopted Budget | F5: Proposed By Budget Officer | G5: Approved By Budget Committee | H5: Adopted By Governing Body
B6: Second Preceding | C6: First Preceding | D6: This Year
B7: Year '17-'18 | C7: Year '18-'19 | D7: 19-'20
A9: 1 | B9: 2680 | C9: 2887 | D9: 5115 | E9: 1. Available cash on hand* (cash basis) or | F9: 7343 | G9: 7343 | H9: 7343 | I9: 1
A10: 2 | E10: 2. Net working capital (accrual basis) | I10: 2
A11: 3 | E11: 3. Previously levied taxes estimated to be received | I11: 3
A12: 4 | B12: 10 | C12: 2 | D12: 4 | E12: 4. Interest | F12: 150 | G12: 150 | H12: 150 | I12: 4
A13: 5 | E13: 5. Transferred IN, from other funds | I13: 5
A14: 6 | E14: 6 OTHER RESOURCES | I14: 6
A15: 7 | E15: 7 | I15: 7
A16: 8 | B16: 2500 | C16: 2597 | D16: 2800 | E16: 8 STATE REVENUE SHARING | F16: 2500 | G16: 2500 | H16: 2500 | I16: 8
A17: 9 | E17: 9 | I17: 9
A18: 10 | E18: 10 | I18: 10
A19: 11 | E19: 11 | I19: 11
A20: 12 | E20: 12 | I20: 12
A21: 13 | E21: 13 | I21: 13
A22: 14 | E22: 14 | I22: 14
A23: 15 | E23: 15 | I23: 15
A24: 16 | E24: 16 | I24: 16
A25: 17 | E25: 17 | I25: 17
A26: 18 | E26: 18 | I26: 18
A27: 19 | E27: 19 | I27: 19
A28: 20 | E28: 20 | I28: 20
A29: 21 | E29: 21 | I29: 21
A30: 22 | E30: 22 | I30: 22
A31: 23 | E31: 23 | I31: 23
A32: 24 | E32: 24 | I32: 24
A33: 25 | E33: 25 | I33: 25
A34: 26 | E34: 26 | I34: 26
A35: 27 | E35: 27 | I35: 27
A36: 28 | E36: 28 | I36: 28
A37: 29 | B37: =SUM(B9:B36) -> 5190 | C37: =SUM(C9:C36) -> 5486 | D37: =SUM(D9:D36) -> 7919 | E37: 29. Total resources, except taxes to be levied | F37: =SUM(F9:F36) -> 9993 | G37: 9993 | H37: 9993 | I37: 29
A38: 30 | E38: 30. Taxes estimated to be received | I38: 30
A39: 31 | E39: 31. Taxes collected in year levied | I39: 31
A40: 32 | B40: =B37+B39 -> 5190 | C40: 5165 | D40: =D37+D38 -> 7919 | E40: 32. TOTAL RESOURCES | F40: =F37+F38 -> 9993 | G40: =G37+G38 -> 9993 | H40: =H37+H38 -> 9993 | I40: 32
E41: *Includes ending balance from prior year | F41: =IF(NOT(F40='LB-31 State Rev D Req'!J41),"RESOURCES <> REQUIREMENTS", "") -> 

Sheet LB-31 State Rev D Req
E1: DETAILED REQUIREMENTS
B2: FORM
B3: LB-31 | C3: CITY OF ADAMS-STATE REVENUE SHARING-STATE REVENUE SHARING
E4: (Name of Organizational Unit - Fund)
B5: Historical Data | E5: REQUIREMENTS DESCRIPTION | H5: Number of Employ-ees | I5: Range* | J5: Budget for Next Year 2019-2020
B6: Actual | D6: Adopted Budget
B7: Second Preceding | C7: First Preceding | D7: This Year | J7: Proposed by | K7: Approved by | L7: Adopted by
B8: Year '17-'18 | C8: Year '18-'19 | D8: 19-'20 | J8: Budget Officer | K8: Budget Committee | L8: Governing Body
A9: 1 | E9: 1 | M9: 1
A10: 2 | B10: 2800 | C10: 2500 | D10: 4919 | E10: 2 STREETS-P.P. & L. (ELECTRICITY) | J10: 5000 | K10: 5000 | L10: 5000 | M10: 2
A11: 3 | E11: 3 | M11: 3
A12: 4 | E12: 4 | M12: 4
A13: 5 | B13: 2390 | C13: 2007 | D13: 3000 | E13: 5 CITY BEAUTIFICATION | J13: 4993 | K13: 4993 | L13: 4993 | M13: 5
A14: 6 | E14: 6 | M14: 6
A15: 7 | E15: 7 | M15: 7
A16: 8 | E16: 8 | M16: 8
A17: 9 | E17: 9 | M17: 9
A18: 10 | E18: 10 | M18: 10
A19: 11 | E19: 11 | M19: 11
A20: 12 | E20: 12 | M20: 12
A21: 13 | E21: 13 | M21: 13
A22: 14 | E22: 14 | M22: 14
A23: 15 | E23: 15 | M23: 15
A24: 16 | E24: 16 | M24: 16
A25: 17 | E25: 17 | M25: 17
A26: 18 | E26: 18 | M26: 18
A27: 19 | E27: 19 | M27: 19
A28: 20 | E28: 20 | M28: 20
A29: 21 | E29: 21 | M29: 21
A30: 22 | E30: 22 | M30: 22
A31: 23 | E31: 23 | M31: 23
A32: 24 | E32: 24 | M32: 24
A33: 25 | E33: 25 | M33: 25
A34: 26 | E34: 26 | M34: 26
A35: 27 | E35: 27 | M35: 27
A36: 28 | E36: 28 | M36: 28
A37: 29 | E37: 29 | M37: 29
A38: 30 | E38: 30 | M38: 30
A39: 31 | B39: 2887 | C39: 5165 | D39: 7570 | E39: 31 Ending balance (prior years) | M39: 31
A40: 32 | E40: 32 UNAPPROPRIATED ENDING FUND BALANCE | M40: 32
A41: 33 | B41: =SUM(B9:B39) -> 8077 | C41: =SUM(C9:C39) -> 9672 | D41: =SUM(D9:D40) -> 15489 | E41: 33 TOTAL REQUIREMENTS | J41: =SUM(J9:J40) -> 9993 | K41: =SUM(K9:K40) -> 9993 | L41: =SUM(L9:L40) -> 9993 | M41: 33
B42: 150-504-031 (Rev 12/09) | J42: =IF(NOT(J41='LB-20 State Rev'!F40),"RESOURCES <> REQUIREMENTS", "") -> 

Sheet LB-11 Capital Outlay
A1: FORM
A2: LB-11 | E2: RESERVE FUND | F2: Year this reserve fund will be reviewed to be continued or abolished.
A3: This fund is authorized and established by resolution / ordinance number | E3: RESOURCES AND REQUIREMENTS | F3: Date can not be more than 10 years after establishment.
A4: 13-08 on 6/12/2013 for the following specified purpose: | F4: Review Year: 2023
A5: Plan for large capital outlay expenses. | E5: CAPITAL OUTLAY RESERVE FUND | F5: CITY OF ADAMS
E6: (Fund) | F6: (Name of Municipal Corporation)
B7: Historical Data | F7: Budget for Next Year 2019-2020
B8: Actual | D8: Adopted Budget | E8: DESCRIPTION | F8: Proposed By | G8: Approved By | H8: Adopted By
B9: Second Preceding | C9: First Preceding | D9: This Year | E9: RESOURCES AND REQUIREMENTS | F9: Budget Officer | G9: Budget Committee | H9: Governing Body
B10: Year '17-'18 | C10: Year '18-'19 | D10: 19-'20
E11: RESOURCES
A12: 1 | B12: 92239 | C12: 102296 | D12: 102360 | E12: 1. Cash on hand* (cash basis) or | F12: 191013 | G12: 191013 | H12: 191013 | I12: 1
A13: 2 | E13: 2. Working Capital (accrual basis) | I13: 2
A14: 3 | E14: 3. Previously levied taxes estimated to be received | I14: 3
A15: 4 | B15: 57 | C15: 46 | D15: 70 | E15: 4. Interest | F15: 1800 | G15: 1800 | H15: 1800 | I15: 4
A16: 5 | B16: 10000 | C16: 10000 | D16: 58400 | E16: 5. Transferred IN, from other funds-GENERAL | I16: 5
A17: 6 | E17: 6. Transferred IN, from other funds-GENERAL-PARK | I17: 6
A18: 7 | E18: 7. Transferred IN, from other funds-STREET | I18: 7
A19: 8 | C19: 10000 | D19: 0 | E19: 8. Transferred IN, from other funds-WATER | I19: 8
A20: 9 | B20: 0 | C20: 0 | D20: 9505 | E20: 9. Transferred IN, from other funds-PARK REC CAPITAL | I20: 9
A21: 10 | E21: 10. Transferred IN, from other funds-CITY EQUIPMENT CAP | I21: 10
A22: 11 | E22: 11. Transferred IN, from other funds-LIBRARY CAPITAL | I22: 11
A23: 12 | E23: 12. Loan Proceeds | I23: 12
A24: 13 | B24: =SUM(B12:B23) -> 102296 | C24: 122342 | D24: =SUM(D12:D22) -> 170335 | E24: 13. Total Resources, except taxes to be levied | F24: =SUM(F12:F22) -> 192813 | G24: =SUM(G12:G22) -> 192813 | H24: =SUM(H12:H22) -> 192813 | I24: 13
A25: 14 | E25: 14. Taxes estimated to be received | I25: 14
A26: 15 | E26: 15. Taxes collected in year levied | I26: 15
A27: 16 | B27: =SUM(B24:B26) -> 102296 | C27: =SUM(C24:C26) -> 122342 | D27: =SUM(D24:D26) -> 170335 | E27: 16. TOTAL RESOURCES | F27: =SUM(F24:F26) -> 192813 | G27: =SUM(G24:G26) -> 192813 | H27: =SUM(H24:H26) -> 192813 | I27: 16
E28: REQUIREMENTS
A29: 1 | E29: 1 | I29: 1
A30: 2 | B30: 102296 | C30: 122342 | D30: 170335 | E30: 2 CAPITAL OUTLAY | F30: 192813 | G30: 192813 | H30: 192813 | I30: 2
A31: 3 | E31: 3 | I31: 3
A32: 4 | E32: 4 SYSTEM IMPROVEMENTS | I32: 4
A33: 5 | E33: 5 | I33: 5
A34: 6 | E34: 6 | I34: 6
A35: 7 | E35: 7 | I35: 7
A36: 8 | E36: 8 | I36: 8
A37: 9 | E37: 9 | I37: 9
A38: 10 | E38: 10 | I38: 10
A39: 11 | E39: 11 | I39: 11
A40: 12 | B40: 0 | C40: 0 | D40: 0 | E40: 12. RESERVED FOR FUTURE EXPENDITURE | I40: 12
A41: 13 | B41: 102296 | C41: 122342 | D41: =SUM(D29:D40) -> 170335 | E41: 13. TOTAL REQUIREMENTS | F41: =SUM(F29:F40) -> 192813 | G41: =SUM(G29:G40) -> 192813 | H41: =SUM(H29:H40) -> 192813 | I41: 13

Sheet LB-11 Water Loan
A1: FORM
A2: LB-11 | E2: RESERVE FUND | F2: Year this reserve fund will be reviewed to be continued or abolished.
A3: This fund is authorized and established by resolution / ordinance number | E3: RESOURCES AND REQUIREMENTS | F3: Date can not be more than 10 years after establishment.
A4: 11-03 on (date) 02-09-2011 for the following specified purpose: | F4: Review Year: 2021
A5: To set aside money which will be equal to one year's loan payment. | E5: WATER RESERVE LOAN FUND | F5: CITY OF ADAMS
E6: (Fund) | F6: (Name of Municipal Corporation)
B7: Historical Data | F7: Budget for Next Year 2020-2021
B8: Actual | D8: Adopted Budget | E8: DESCRIPTION | F8: Proposed By | G8: Approved By | H8: Adopted By
B9: Second Preceding | C9: First Preceding | D9: This Year | E9: RESOURCES AND REQUIREMENTS | F9: Budget Officer | G9: Budget Committee | H9: Governing Body
B10: Year '17-'18 | C10: Year '18-'19 | D10: 19-'20
A12: 1 | B12: 38175 | C12: 42189 | D12: 42200 | E12: 1. Cash on hand* (cash basis) or | F12: 42410 | G12: 42410 | H12: 42410 | I12: 1
A13: 2 | E13: 2. Working Capital (accrual basis) | I13: 2
A14: 3 | E14: 3. Previously levied taxes estimated to be received | I14: 3
A15: 4 | B15: 0 | C15: 11 | D15: 30 | E15: 4. Interest | F15: 480 | G15: 480 | H15: 480 | I15: 4
A16: 5 | B16: 4000 | C16: 0 | D16: 0 | E16: 5. Transferred IN, from other funds WATER | I16: 5
A17: 6 | E17: 6 | I17: 6
A18: 7 | E18: 7 | I18: 7
A19: 8 | E19: 8 | I19: 8
A20: 9 | B20: =SUM(B12:B17) -> 42175 | C20: =SUM(C12:C19) -> 42200 | D20: =SUM(D12:D16) -> 42230 | E20: 9. Total Resources, except taxes to be levied | F20: =SUM(F12:F16) -> 42890 | G20: 42890 | H20: 42890 | I20: 9
A21: 10 | E21: 10. Taxes estimated to be received | I21: 10
A22: 11 | E22: 11. Taxes collected in year levied | I22: 11
A23: 12 | B23: =SUM(B20:B22) -> 42175 | C23: =SUM(C20:C22) -> 42200 | D23: =SUM(D20:D22) -> 42230 | E23: 12. TOTAL RESOURCES | F23: =SUM(F20:F22) -> 42890 | G23: =SUM(G20:G22) -> 42890 | H23: =SUM(H20:H22) -> 42890 | I23: 12
E24: REQUIREMENTS
A25: 1 | E25: 1 | I25: 1
A26: 2 | E26: 2 | I26: 2
A27: 3 | B27: 20000 | C27: 20000 | D27: 0 | E27: 3 Transfer to Water Fund | F27: 0 | G27: 0 | H27: 0 | I27: 3
A28: 4 | E28: 4 | I28: 4
A29: 5 | E29: 5 | I29: 5
A30: 6 | E30: 6 | I30: 6
A31: 7 | E31: 7 | I31: 7
A32: 8 | E32: 8 | I32: 8
A33: 9 | E33: 9 | I33: 9
A34: 10 | E34: 10 | I34: 10
A35: 11 | E35: 11 | I35: 11
A36: 12 | E36: 12 | I36: 12
A37: 13 | E37: 13 | I37: 13
A38: 14 | E38: 14 | I38: 14
A39: 15 | E39: 15 | I39: 15
A40: 16 | B40: 22175 | C40: 22175 | D40: 42230 | E40: 16. RESERVED FOR FUTURE EXPENDITURE | F40: 42890 | G40: 42890 | H40: 42890 | I40: 16
A41: 17 | B41: =SUM(B25:B40) -> 42175 | C41: =SUM(C25:C40) -> 42175 | D41: =SUM(D25:D40) -> 42230 | E41: 17. TOTAL REQUIREMENTS | F41: =SUM(F25:F40) -> 42890 | G41: =SUM(G25:G40) -> 42890 | H41: =SUM(H25:H40) -> 42890 | I41: 17

Sheet LB-11 WSR
A1: FORM
A2: LB-11 | E2: RESERVE FUND | F2: Year this reserve fund will be reviewed to be continued or abolished.
A3: This fund is authorized and established by resolution / ordinance number | E3: RESOURCES AND REQUIREMENTS | F3: Date can not be more than 10 years after establishment.
A4: 11-02 on (date) 02-09-2011 for the following specified purpose: | F4: Review Year: 2021
A5: Plan for water facilities. | E5: WATER SYSTEM REPLACEMENT FUND | F5: CITY OF ADAMS
E6: (Fund) | F6: (Name of Municipal Corporation)
B7: Historical Data | F7: Budget for Next Year 2020-2021
B8: Actual | D8: Adopted Budget | E8: DESCRIPTION | F8: Proposed By | G8: Approved By | H8: Adopted By
B9: Second Preceding | C9: First Preceding | D9: This Year | E9: RESOURCES AND REQUIREMENTS | F9: Budget Officer | G9: Budget Committee | H9: Governing Body
B10: Year '17-'18 | C10: Year '18-'19 | D10: 19-'20
E11: RESOURCES
A12: 1 | B12: 64900 | C12: 42568 | D12: 42595 | E12: 1. Cash on hand* (cash basis) or | F12: 36817 | G12: 36817 | H12: 36817 | I12: 1
A13: 2 | E13: 2. Working Capital (accrual basis) | I13: 2
A14: 3 | E14: 3. Previously levied taxes estimated to be received | I14: 3
A15: 4 | B15: 50 | C15: 21 | D15: 30 | E15: 4. Interest | F15: 500 | G15: 500 | H15: 500 | I15: 4
A16: 5 | B16: 5000 | C16: 0 | E16: 5. Transferred IN, from other funds-WATER | I16: 5
A17: 6 | E17: 6 | I17: 6
A18: 7 | E18: 7 | I18: 7
A19: 8 | E19: 8 | I19: 8
A20: 9 | B20: =SUM(B12:B17) -> 69950 | C20: =SUM(C12:C19) -> 42589 | D20: =SUM(D12:D17) -> 42625 | E20: 9. Total Resources, except taxes to be levied | F20: =SUM(F12:F17) -> 37317 | G20: 37317 | H20: 37317 | I20: 9
A21: 10 | E21: 10. Taxes estimated to be received | I21: 10
A22: 11 | E22: 11. Taxes collected in year levied | I22: 11
A23: 12 | B23: =SUM(B20:B22) -> 69950 | C23: =SUM(C20:C22) -> 42589 | D23: =SUM(D20:D22) -> 42625 | E23: 12. TOTAL RESOURCES | F23: =SUM(F20:F22) -> 37317 | G23: =SUM(G20:G22) -> 37317 | H23: =SUM(H20:H22) -> 37317 | I23: 12
E24: REQUIREMENTS
A25: 1 | E25: 1 | I25: 1
A26: 2 | B26: 69950 | C26: 42589 | D26: 42625 | E26: 2 WATER SYSTEM REPLACEMENT | F26: 37317 | G26: 37317 | H26: 37317 | I26: 2
A27: 3 | E27: 3 | I27: 3
A28: 4 | I28: 4
A29: 5 | E29: 5 | I29: 5
A30: 6 | E30: 6 | I30: 6
A31: 7 | E31: 7 | I31: 7
A32: 8 | E32: 8 | I32: 8
A33: 9 | E33: 9 | I33: 9
A34: 10 | E34: 10 | I34: 10
A35: 11 | E35: 11 | I35: 11
A36: 12 | E36: 12 | I36: 12
A37: 13 | E37: 13 | I37: 13
A38: 14 | E38: 14 | I38: 14
A39: 15 | E39: 15 | I39: 15
A40: 16 | B40: 0 | D40: 0 | E40: 16. RESERVED FOR FUTURE EXPENDITURE | I40: 16
A41: 17 | B41: =SUM(B25:B40) -> 69950 | C41: =SUM(C25:C40) -> 42589 | D41: =SUM(D25:D40) -> 42625 | E41: 17. TOTAL REQUIREMENTS | F41: =SUM(F25:F40) -> 37317 | G41: =SUM(G25:G40) -> 37317 | H41: =SUM(H25:H40) -> 37317 | I41: 17

Sheet LB-35 Debt Serv
D1: BONDED DEBT | H1: Bond Debt Payments are for:
B2: FORM | D2: RESOURCES AND REQUIREMENTS
B3: LB-35
E4: DEBT SERVICE FUND | H4: CITY OF ADAMS
D5: (Fund) | H5: (Name of Municipal Corporation)
B6: Historical Data | E6: DESCRIPTION OF RESOURCES AND REQUIREMENTS | G6: Budget for Next Year 2020-2021
B7: Actual | D7: Adopted Budget | G7: Proposed By Budget Officer | H7: Approved By Budget Committee | I7: Adopted By Governing Body
B8: Second Preceding | C8: First Preceding | D8: This Year
B9: Year '17-'18 | C9: Year '18-'19 | D9: 19-'20
E10: Resources
A11: 1 | B11: 17,930 | C11: 9,446 | D11: 3,439 | E11: 1. Beginning Cash on Hand (Cash Basis), or | G11: 0 | H11: 0 | I11: 0 | J11: 1
A12: 2 | E12: 2. Working Capital (Accrual Basis) | J12: 2
A13: 3 | E13: 3. Previously Levied Taxes to be Received | J13: 3
A14: 4 | E14: 4. Interest | J14: 4
A15: 5 | B15: 0 | E15: 5. Transferred from Other Funds | J15: 5
A16: 6 | B16: 0 | E16: 6 Proceeds from Sale of Capital Assets | J16: 6
A17: 7 | B17: 0 | C17: =SUM(C11:C16) -> 9,446 | D17: =SUM(D11:D16) -> 3,439 | E17: 7. Total Resources, Except Taxes to be Levied | G17: 0 | H17: 0 | I17: 0 | J17: 7
A18: 8 | E18: 8. Taxes Estimated to be Received * | J18: `
A19: 9 | E19: 9. Taxes Collected in Year Levied | J19: 9
A20: 10 | B20: =+B19+B17 -> 0 | C20: 9,446 | D20: =+D18+D17 -> 3,439 | E20: 10. TOTAL RESOURCES | G20: =+G18+G17 -> 0 | H20: =+H18+H17 -> 0 | I20: =+I18+I17 -> 0 | J20: 10
E21: Requirements
E22: Bond Principal Payments
E23: Bond Issue | F23: Budgeted Payment Date
A24: 11 | B24: 5,330 | C24: 5,865 | D24: 0 | E24: 11. | F24: 9/15/18-6/16/19 | J24: 11
A25: 12 | E25: 12. | J25: 12
A26: 13 | E26: 13. | J26: 13
A27: 14 | B27: =SUM(B24:B26) -> 5,330 | C27: =SUM(C24:C26) -> 5,865 | D27: =SUM(D24:D26) -> 0 | E27: 14. Total Principal | G27: =SUM(G24:G26) -> 0 | H27: 0 | I27: 0 | J27: 14
E28: Bond Interest Payments
E29: Bond Issue | F29: Budgeted Payment Date
A30: 15 | B30: 1,740 | C30: 142 | D30: 0 | E30: 15. | F30: 9/15/18-6/16/19 | J30: 15
A31: 16 | E31: 16. | J31: 16
A32: 17 | E32: 17. | J32: 17
A33: 18 | B33: =SUM(B30:B32) -> 1,740 | C33: =SUM(C30:C32) -> 142 | D33: =SUM(D30:D32) -> 0 | E33: 18. Total Interest | G33: =SUM(G30:G32) -> 0 | H33: 0 | I33: 0 | J33: 18
E34: Unappropriated Balance for Following Year By
E35: Bond Issue | F35: Projected Payment Date
A36: 19 | E36: 19. | J36: 19
A37: 20 | E37: 20. | J37: 20
A38: 21 | E38: 21. | J38: 21
A39: 22 | B39: 0 | E39: 22. Ending balance (prior years) | J39: 22
A40: 23 | C40: 0 | D40: 0 | E40: 23. Total Unappropriated Ending Fund Balance | G40: 0 | H40: 0 | I40: 0 | J40: 23
A41: 24 | D41: 3,439 | E41: 24. Loan Repayment to General Fund | G41: 0 | H41: 0 | I41: 0 | J41: 24
A42: 25 | E42: 25. Tax Credit Bond Reserve | J42: 25
A43: 26 | B43: =+B27+B33+B39+B41+B42 -> 7,070 | C43: 3,439 | D43: =+D27+D33+D36+D37+D38+D40+D41+D42 -> 3,439 | E43: 26. TOTAL REQUIREMENTS | G43: =G27+G33+G40+G41 -> 0 | H43: =+H27+H33+H36+H37+H38+H40+H41+H42 -> 0 | I43: =+I27+I33+I36+I37+I38+I40+I41+I42 -> 0 | J43: 26
B44: 150-504-035 (Rev 02-14) | D44: *If this form is used for revenue bonds, property tax resources may not be included.

Sheet LB-11 Park
A1: FORM
A2: LB-11 | E2: RESERVE FUND | F2: Year this reserve fund will be reviewed to be continued or abolished.
A3: This fund is authorized and established by resolution / ordinance number | E3: RESOURCES AND REQUIREMENTS | F3: Date can not be more than 10 years after establishment.
A4: 09-03 on (date) 03-10-2009 for the following specified purpose: | F4: Review Year: 2019
A5: To accumulate funds for park projects. | E5: PARK RECREATIONAL CAPITAL FUND | F5: CITY OF ADAMS
E6: (Fund) | F6: (Name of Municipal Corporation)
B7: Historical Data | F7: Budget for Next Year 2020-21
B8: Actual | D8: Adopted Budget | E8: DESCRIPTION | F8: Proposed By | G8: Approved By | H8: Adopted By
B9: Second Preceding | C9: First Preceding | D9: This Year | E9: RESOURCES AND REQUIREMENTS | F9: Budget Officer | G9: Budget Committee | H9: Governing Body
B10: Year '17-'18 | C10: Year '18-'19 | D10: 19-'20
E11: RESOURCES
A12: 1 | B12: 9508 | C12: 9508 | D12: 0 | E12: 1. Cash on hand* (cash basis) or | F12: 0 | G12: 0 | H12: 0 | I12: 1
A13: 2 | E13: 2. Working Capital (accrual basis) | I13: 2
A14: 3 | E14: 3. Previously levied taxes estimated to be received | I14: 3
A15: 4 | B15: 0 | E15: 4. Interest | I15: 4
A16: 5 | E16: 5. Transferred IN, from other funds-GENERAL: PARK | I16: 5
A17: 6 | E17: 6 DONATIONS | I17: 6
A18: 7 | E18: 7 GRANTS | I18: 7
A19: 8 | E19: 8 MISCELLANEOUS | I19: 8
A20: 9 | B20: =SUM(B12:B19) -> 9508 | C20: 9508 | D20: 9505 | E20: 9. Total Resources, except taxes to be levied | F20: 0 | G20: 0 | H20: 0 | I20: 9
A21: 10 | E21: 10. Taxes estimated to be received | I21: 10
A22: 11 | E22: 11. Taxes collected in year levied | I22: 11
A23: 12 | B23: =SUM(B20:B22) -> 9508 | C23: 9508 | D23: =SUM(D20:D22) -> 9505 | E23: 12. TOTAL RESOURCES | F23: =SUM(F20:F22) -> 0 | G23: =SUM(G20:G22) -> 0 | H23: =SUM(H20:H22) -> 0 | I23: 12
E24: REQUIREMENTS
A25: 1 | E25: 1 | I25: 1
A26: 2 | E26: 2 PARK CAPITAL EXPENDITURES | I26: 2
A27: 3 | E27: 3 | I27: 3
A28: 4 | E28: 4 | I28: 4
A29: 5 | B29: 9508 | C29: 9508 | D29: 9505 | E29: 5 TRANSFER TO CAPITAL OUTLAY | F29: 0 | G29: 0 | H29: 0 | I29: 5
A30: 6 | E30: 6 | I30: 6
A31: 7 | E31: 7 | I31: 7
A32: 8 | E32: 8 | I32: 8
A33: 9 | E33: 9 | I33: 9
A34: 10 | E34: 10 | I34: 10
A35: 11 | E35: 11 | I35: 11
A36: 12 | E36: 12 | I36: 12
A37: 13 | E37: 13 | I37: 13
A38: 14 | E38: 14 | I38: 14
A39: 15 | E39: 15 | I39: 15
A40: 16 | B40: 0 | E40: 16. RESERVED FOR FUTURE EXPENDITURE | I40: 16
A41: 17 | B41: =SUM(B26:B40) -> 9508 | C41: =SUM(C26:C40) -> 9508 | D41: =D23 -> 9505 | E41: 17. TOTAL REQUIREMENTS | F41: 0 | G41: =SUM(G25:G40) -> 0 | H41: =SUM(H25:H40) -> 0 | I41: 17
